Workbook

Sheet Individual (hidden)
B1: Captura Individual de Empleados para Alta Masiva
H2: Dato | I2: Máximo | J2: Obligatorio | K2: Registro | L2: CURP y RFC
G3: =AND(G4:G40) -> FALSE
A4: Id | B4: A | G4: =IF(LEN(B4)>=J4,ValidaLongitudYCaracteres(B4,I4),FALSE) -> TRUE | H4: =A4 -> Id | I4: =Detalle!C33 -> 1 | J4: =Detalle!C37 -> 1 | K4: =UPPER(B4) -> A
A5: NOMBRE (S) | C5: =IF(LEN(B5)>I5,"+"&I5,"") ->  | D5: EDO CIVIL | F5: =IF(LEN(K23)>I23,"+"&I23,"") ->  | G5: =IF(LEN(B5)>=J5,ValidaLongitudYNombre(K5,I5),FALSE) -> FALSE | H5: NOMBRE (S) | I5: =Detalle!D33 -> 30 | J5: =Detalle!D37 -> 2 | K5: =MayuscYFiltra(B5) -> 
A6: APELLIDO PATERNO | C6: =IF(LEN(B6)>I6,"+"&I6,"") ->  | D6: PROFESIÓN | E6: 4 - EMPLEADO | F6: =IF(LEN(K24)>I24,"+"&I24,"") ->  | G6: =IF(LEN(B6)>=J6,ValidaLongitudYNombre(K6,I6),FALSE) -> FALSE | H6: APELLIDO PATERNO | I6: =Detalle!E33 -> 30 | J6: =Detalle!E37 -> 1
A7: APELLIDO MATERNO | D7: CORREO ELECTRONICO | F7: =IF(LEN(E7)>I25,"+"&I25,"") ->  | G7: =IF(LEN(B7)>=J7,ValidaLongitudYNombre(K7,I7),FALSE) -> FALSE | H7: APELLIDO MATERNO | I7: =Detalle!F33 -> 30 | J7: =Detalle!F37 -> 1
A8: NOMBRE EN TARJETA | B8: =TRIM(LEFT(B5,IF(ISERROR(SEARCH(" ",B5)),LEN(B5),SEARCH(" ",B5)+1))&" "&B6) ->  | D8: NOMBRE COMPLETO DE BENEFICIARIO 1 | F8: =IF(LEN(E8)>I26,"+"&I26,"") ->  | G8: =IF(LEN(B8)>=J8,ValidaLongitudYLetras(K8,I8),FALSE) -> FALSE | H8: NOMBRE EN TARJETA | I8: =Detalle!G33 -> 22 | J8: =Detalle!G37 -> 1
A9: CALLE Y NUMERO | D9: PARENTESCO 1 | F9: =IF(LEN(K27)>I27,"+"&I27,"") ->  | G9: =IF(LEN(B9)>=J9,ValidaLongitudYCaracteres(K9,I9),FALSE) -> FALSE | H9: CALLE Y NUMERO | I9: =Detalle!H33 -> 35 | J9: =Detalle!H37 -> 2
A10: COLONIA | D10: % BENEF 1 | E10: 1 | F10: =IF(Porcentaje.Beneficiario1+E13+E16<>100%,"<>","") ->  | G10: =IF(LEN(B10)>=J10,ValidaLongitudYCaracteres(K10,I10),FALSE) -> FALSE | H10: COLONIA | I10: =Detalle!I33 -> 35 | J10: =Detalle!I37 -> 2
A11: DELEGACIÓN O MUNICIPIO | D11: NOMBRE COMPLETO DE BENEFICIARIO 2 | F11: =IF(LEN(E11)>I29,"+"&I29,"") ->  | G11: =IF(LEN(B11)>=J11,ValidaLongitudYCaracteres(K11,I11),FALSE) -> FALSE | H11: DELEGACIÓN O MUNICIPIO | I11: =Detalle!J33 -> 30 | J11: =Detalle!J37 -> 2
A12: ESTADO | D12: PARENTESCO 2 | F12: =IF(LEN(K30)>I30,"+"&I30,"") ->  | G12: =IF(LEN(B12)>=J12,ValidaLongitudYCaracteres(B12,I12),FALSE) -> FALSE | H12: ESTADO | I12: =Detalle!K33 -> 3 | J12: =Detalle!K37 -> 2 | K12: =UPPER(B12) -> 
A13: CODIGO POSTAL | C13: =IF(LEN(B13)>I13,"+"&I13,"") ->  | D13: % BENEF 2 | F13: =IF(Porcentaje.Beneficiario1+E13+E16<>100%,"<>","") ->  | G13: =IF(LEN(B13)>=J13,ValidaLongitudYDigitos(B13,I13),FALSE) -> FALSE | H13: =A13 -> CODIGO POSTAL | I13: =Detalle!L33 -> 10 | J13: =Detalle!L37 -> 1 | K13: =UPPER(B13) -> 
A14: ="FECHA DE NACIMIENTO (Min:"&Edad.Minima&" Años)" -> FECHA DE NACIMIENTO (Min:18 Años) | C14: =IF(LEN(K14)>I14,"+"&I14,"") ->  | D14: NOMBRE COMPLETO DE BENEFICIARIO 3 | F14: =IF(LEN(E14)>I32,"+"&I32,"") ->  | G14: =IF(LEN(B14)>=J14,ValidaFechaYMayorEdad(K14,I14),FALSE) -> FALSE | H14: FECHA DE NACIMIENTO (Min:18 Años) | I14: =Detalle!M33 -> 8 | J14: =Detalle!M37 -> 1 | K14: =B14 -> 00:00:00 | L14: =B14 -> 00:00:00
A15: SEXO (M-Masculino / F-Femenino) | C15: =IF(LEN(B15)>I15,"+"&I15,"") ->  | D15: PARENTESCO 3 | F15: =IF(LEN(K33)>I33,"+"&I33,"") ->  | G15: =IF(OR(B15="F",B15="M"),TRUE,FALSE) -> FALSE | H15: SEXO (M-Masculino / F-Femenino) | I15: =Detalle!N33 -> 1 | J15: =Detalle!N37 -> 1 | K15: =UPPER(B15) ->  | L15: =IF(K15="F","M",IF(K15="M","H","")) -> 
A16: CIUDAD DE NACIMIENTO | D16: % BENEF 3 | F16: =IF(Porcentaje.Beneficiario1+E13+E16<>100%,"<>","") ->  | G16: =IF(LEN(B16)>=J16,ValidaLongitudYCaracteres(K16,I16),FALSE) -> FALSE | H16: CIUDAD DE NACIMIENTO | I16: =Detalle!O33 -> 30 | J16: =Detalle!O37 -> 1 | K16: =MayuscYFiltra(B16) -> 
A17: ESTADO NACIMIENTO | D17: CLIENTE (0) | F17: =IF(LEN(E17)>I35,"+"&I35,"") ->  | G17: =IF(LEN(B17)>=J17,ValidaLongitudYCaracteres(B17,I17),FALSE) -> FALSE | H17: ESTADO NACIMIENTO | I17: =Detalle!P33 -> 3 | J17: =Detalle!P37 -> 1 | K17: =UPPER(B17) ->  | L17: =VLOOKUP(K17,Tabla.EDO.CURP[],3,FALSE) -> 
A18: RFC | D18: CUENTA(0) | F18: =IF(LEN(E18)>I36,"+"&I36,"") ->  | G18: =IF(LEN(B18)>=J18,ValidaLongitudYCaracteres(B18,I18),FALSE) -> FALSE | H18: RFC | I18: =Detalle!Q33 -> 13 | J18: =Detalle!Q37 -> 13 | L18: =GeneraRFC(K5,K6,K7,L14) -> 
A19: CURP | D19: NUMERO DE TARJETA | F19: =IF(LEN(E19)>I37,"+"&I37,"") ->  | G19: =IF(LEN(B19)>=J19,ValidaLongitudYCaracteres(B19,I19),FALSE) -> FALSE | H19: CURP | I19: =Detalle!R33 -> 18 | J19: =Detalle!R37 -> 18 | L19: =IFERROR(GeneraCURP(K5,K6,K7,L14,L15,L17),"") -> 
A20: TEL CASA (10 dígitos - con clave lada) | D20: INGRESO BRUTO MENSUAL | F20: =IF(LEN(K38)>I38,"+"&I38,"") ->  | G20: =IF(LEN(B20)>=J20,ValidaLongitudYDigitos(B20,I20),FALSE) -> FALSE | H20: TEL CASA (10 dígitos - con clave lada) | I20: =Detalle!S33 -> 11 | J20: =Detalle!S37 -> 1
A21: TEL OFICINA (10 dígitos - con clave lada) | D21: IMAGEN | F21: =IF(LEN(E21)>I39,"+"&I39,"") ->  | G21: =IF(LEN(B21)>=J21,ValidaLongitudYDigitos(B21,I21),FALSE) -> FALSE | H21: TEL OFICINA (10 dígitos - con clave lada) | I21: =Detalle!T33 -> 11 | J21: =Detalle!T37 -> 1
A22: CELULAR (10 dígitos - con clave lada) | D22: CN | F22: =IF(LEN(E22)>I40,"+"&I40,"") ->  | G22: =IF(LEN(B22)>=J22,ValidaLongitudYDigitos(B22,I22),FALSE) -> FALSE | H22: CELULAR (10 dígitos - con clave lada) | I22: =Detalle!U33 -> 11 | J22: =Detalle!U37 -> 1
A23: Tip: Al capturar cada celda darle <Enter> para que vaya la captura en orden. | G23: =IF(LEN(K23)>=J23,ValidaLongitudYCaracteres(K23,I23),FALSE) -> FALSE | H23: =D5 -> EDO CIVIL | I23: =Detalle!V33 -> 1 | J23: =Detalle!V37 -> 1 | K23: =IFERROR(VLOOKUP(E5,Tabla.Edo.Civil[],4,FALSE),"") -> 
G24: =IF(LEN(E6)>=J24,ValidaLongitudYCaracteres(K24,I24),FALSE) -> TRUE | H24: =D6 -> PROFESIÓN | I24: =Detalle!W33 -> 1 | J24: =Detalle!W37 -> 1 | K24: =VLOOKUP(E6,Tabla.Profesiones[],4,FALSE) -> 4
G25: =IF(AND(J25=0, LEN(E7)=J25),TRUE,ValidaDireccionEMail(E7,I25)) -> TRUE | H25: CORREO ELECTRONICO | I25: =Detalle!X33 -> 55 | J25: =Detalle!X37 -> 0 | K25: =E7 -> 0
G26: =IF(LEN(E8)>=J26,ValidaLongitudYNombre(K26,I26),FALSE) -> FALSE | H26: NOMBRE COMPLETO DE BENEFICIARIO 1 | I26: =Detalle!Y33 -> 45 | J26: =Detalle!Y37 -> 1 | K26: =MayuscYFiltra(E8) -> 
G27: =IF(LEN(E9)>=J27,ValidaLongitudYCaracteres(K27,I27),FALSE) -> FALSE | H27: PARENTESCO 1 | I27: =Detalle!Z33 -> 15 | J27: =Detalle!Z37 -> 1 | K27: =IFERROR(VLOOKUP(E9,Tabla.Parentesco[],4,FALSE),"") -> 
G28: =AND(ValidaPorcentaje(E10),$E$10+$E$13+$E$16=1) -> TRUE | H28: % BENEF 1 | I28: =Detalle!AA33 -> 3 | J28: =Detalle!AA37 -> 1 | K28: =E10 -> 1
G29: =IF(LEN(E11)>=J29,ValidaLongitudYCaracteres(E11,I29),FALSE) -> TRUE | H29: NOMBRE COMPLETO DE BENEFICIARIO 2 | I29: =Detalle!AB33 -> 45 | J29: =Detalle!AB37 -> 0 | K29: =UPPER(E11) -> 
G30: =IF(LEN(E12)>=J30,ValidaLongitudYCaracteres(K30,I30),FALSE) -> TRUE | H30: PARENTESCO 2 | I30: =Detalle!AC33 -> 15 | J30: =Detalle!AC37 -> 0 | K30: =IFERROR(VLOOKUP(E12,Tabla.Parentesco[],4,FALSE),"") -> 
G31: =AND(ValidaPorcentaje(E13),$E$10+$E$13+$E$16=1) -> TRUE | H31: % BENEF 2 | I31: =Detalle!AD33 -> 3 | J31: =Detalle!AD37 -> 0 | K31: =E13 -> 0
G32: =IF(LEN(E14)>=J32,ValidaLongitudYCaracteres(E14,I32),FALSE) -> TRUE | H32: NOMBRE COMPLETO DE BENEFICIARIO 3 | I32: =Detalle!AE33 -> 45 | J32: =Detalle!AE37 -> 0 | K32: =UPPER(E14) -> 
G33: =IF(LEN(E15)>=J33,ValidaLongitudYCaracteres(K33,I33),FALSE) -> TRUE | H33: PARENTESCO 3 | I33: =Detalle!AF33 -> 15 | J33: =Detalle!AF37 -> 0 | K33: =IFERROR(VLOOKUP(E15,Tabla.Parentesco[],4,FALSE),"") -> 
G34: =AND(ValidaPorcentaje(E16),$E$10+$E$13+$E$16=1) -> TRUE | H34: % BENEF 3 | I34: =Detalle!AG33 -> 3 | J34: =Detalle!AG37 -> 0 | K34: =E16 -> 0
G35: =IF(LEN(E17)>=J35,ValidaLongitudYDigitos(E17,I35),FALSE) -> TRUE | H35: CLIENTE (0) | I35: =Detalle!AL33 -> 9 | J35: =Detalle!AL37 -> 0 | K35: =UPPER(E17) -> 
G36: =IF(LEN(E18)>=J36,ValidaLongitudYDigitos(E18,I36),FALSE) -> TRUE | H36: CUENTA(0) | I36: =Detalle!AM33 -> 12 | J36: =Detalle!AM37 -> 0 | K36: =UPPER(E18) -> 
G37: =IF(LEN(E19)>=J37,ValidaLongitudYDigitos(E19,I37),FALSE) -> TRUE | H37: NUMERO DE TARJETA | I37: =Detalle!AH33 -> 18 | J37: =Detalle!AH37 -> 0 | K37: =UPPER(E19) -> 
G38: =IF(AND(K38>0,LEN(K38)>=J38),ValidaLongitudYDigitos(K38,I38),FALSE) -> FALSE | H38: INGRESO BRUTO MENSUAL | I38: =Detalle!AI33 -> 15 | J38: =Detalle!AI37 -> 1 | K38: =E20 -> 0
G39: =IF(LEN(E21)>=J39,ValidaLongitudYCaracteres(E21,I39),FALSE) -> FALSE | H39: IMAGEN | I39: =Detalle!AJ33 -> 2 | J39: =Detalle!AJ37 -> 1 | K39: =UPPER(E21) -> 
G40: =IF(LEN(E22)>=J40,ValidaLongitudYCaracteres(E22,I40),FALSE) -> FALSE | H40: CN | I40: =Detalle!AK33 -> 3 | J40: =Detalle!AK37 -> 1 | K40: =UPPER(E22) -> 

Sheet Detalle
AT1: No Insertar ni Capturar nada a partir de esta columna
B8: Instrucciones para llenar tabla (posicionar Mouse sobre la celda). | E8: Pasos para generar el Archivo Texto (posicionar Mouse sobre la celda)
A15: " E N C A B E Z A D O " | I15: * Campos Obligatorios | J15: Division
A16: Nombre Campo | C16: Id | D16: Nombre de la Empresa | E16: Número de Cliente | F16: Número de Registro | G16: Fecha | J16: 2
A17: Longitud | C17: 1 | D17: 35 | E17: 9 | F17: 5 | G17: 8 | J17: 46
A18: Pos Inicial | C18: 1 | D18: 2 | E18: 37 | F18: 48 | G18: 53 | J18: 47
A19: Pos Final | C19: 1 | D19: 36 | E19: 45 | F19: 52 | G19: 60 | J19: *
D20: * | E20: * | F20: * | G20: * | J20: Division
C21: Id | D21: NOMBRE DE LA EMPRESA | E21: NUMERO DE CLIENTE | F21: NUMERO DE REGISTRO | G21: FECHA | I21: Validación de Tabla | J21: 0
C22: C | G22: =TODAY() -> 2019-09-12
C24: S, SEXO M = MASCULINO, F = FEMENINO
C25: C, ESTADO CIVIL 1=SOLTERO, 2=CASADO, 3=DIVORCIADO, 4=VIUDO, 5=COHABITADO
C26: PRO, PROFESION 1 = ACCIONISTA, 2 =COMERCIANTE, 3 = COMISIONISTA, 4 = EMPLEADO, 5 = INDEPENDIENTE, 6 = OBRERO, 7 = EMPRESARIO, 8 = PRESTADOR DE SERVICIOS, 9 = OTROS
C27: IMAGEN, 01 VISION NOMINA, 09 L1DER NOMINA, 11 VISION IMSS
C28: CN, 000
C29: Estado de Nacimiento, se deben de ocupar máximo 3 caracteres en esta columna, contando los espacios dejados en blanco.Lista de abreviaturas para los Estados de la República:AGS Aguascalientes, BCN Baja California Norte, BCS Baja California Sur, CAM Campeche, CHS Chiapas, COH Coahuila, COL Colima, DF Distrito Federal, DGO Durango, EM Estado de México, GRO Guerrero, GTO Guanajuato, HGO Hidalgo, JAL Jalisco, MIC Michoacán, MOR Morelos, NAY Nayarit, NL Nuevo León, OAX Oaxaca, PUE Puebla, QR Quintana Roo, QRO Querétaro, SIN Sinaloa, SLP San Luis Potosí, SON Sonora, TAB Tabasco, TAM Tamaulipas, TLA Tlaxcala, VER Veracruz, YUC Yucatán y ZAC Zacatecas Dato Obligatorio
C30: Se escribe el parentesco que guarda con el empleado. (Hay que usar el catalogo) A PADRE, B MADRE, C ESPOSO (A) D HIJO (A), E HERMANO(A), F ABUELO(A), G NIETO(A), H TIO(A), I PRIMO(A), J SOBRINO(A), K CUÑADO(A), L YERNO, M NUERA, N AMIGO(A), O CONOCIDO(A), P OTRO
A32: Nombre Campo | B32: NO Mover estos Renglones o la Macro deja de funcionar | C32: Id | D32: Nombre | E32: Ap Paterno | F32: Ap Materno | G32: Nombre Corto | H32: Calle y Número | I32: Colonia | J32: Población | K32: Edo | L32: Cod Postal | M32: Fecha Nac | N32: Sex | O32: Ciudad Nacimiento | P32: Edo Nac | Q32: RFC | R32: CURP | S32: Tel Part | T32: Tel Ofi | U32: Celular | V32: Edo Civil | W32: Profesion | X32: Correo Electrónico | Y32: Beneficiario 1 | Z32: Parentesco 1 | AA32: Porcentaje 1 | AB32: Beneficiario 2 | AC32: Parentesco 2 | AD32: Porcentaje 2 | AE32: Beneficiario 3 | AF32: Parentesco 3 | AG32: Porcentaje 3 | AH32: Tarjeta | AI32: Ingreso Bruto Mensual | AJ32: Imagen | AK32: CN | AL32: Cliente | AM32: Cuenta
A33: Longitud | C33: 1 | D33: 30 | E33: 30 | F33: 30 | G33: 22 | H33: 35 | I33: 35 | J33: 30 | K33: 3 | L33: 10 | M33: 8 | N33: 1 | O33: 30 | P33: 3 | Q33: 13 | R33: 18 | S33: 11 | T33: 11 | U33: 11 | V33: 1 | W33: 1 | X33: 55 | Y33: 45 | Z33: 15 | AA33: 3 | AB33: 45 | AC33: 15 | AD33: 3 | AE33: 45 | AF33: 15 | AG33: 3 | AH33: 18 | AI33: 15 | AJ33: 2 | AK33: 3 | AL33: 9 | AM33: 12 | AN33: 0
A34: Pos Inicial | C34: 1 | D34: =C35+1 -> 2 | E34: =D35+1 -> 32 | F34: 62 | G34: 92 | H34: 114 | I34: 149 | J34: 184 | K34: 214 | L34: =U35+1 -> 283 | M34: =P35+1 -> 326 | N34: =K35+1 -> 217 | O34: =L35+1 -> 293 | P34: =O35+1 -> 323 | Q34: =V35+1 -> 219 | R34: 232 | S34: 250 | T34: 261 | U34: 272 | V34: =N35+1 -> 218 | W34: =M35+1 -> 334 | X34: 335 | Y34: 390 | Z34: 435 | AA34: 450 | AB34: 453 | AC34: 498 | AD34: 513 | AE34: 516 | AF34: 561 | AG34: 576 | AH34: =AM35+1 -> 600 | AI34: =AH35+1 -> 618 | AJ34: =AI35+1 -> 633 | AK34: =AJ35+1 -> 635 | AL34: =AG35+1 -> 579 | AM34: =AL35+1 -> 588
A35: Pos Final | C35: 1 | D35: =C35+D33 -> 31 | E35: =D35+E33 -> 61 | F35: 91 | G35: 113 | H35: 148 | I35: 183 | J35: 213 | K35: 216 | L35: =U35+L33 -> 292 | M35: =P35+M33 -> 333 | N35: =K35+N33 -> 217 | O35: =L35+O33 -> 322 | P35: =O35+P33 -> 325 | Q35: =V35+Q33 -> 231 | R35: 249 | S35: 260 | T35: 271 | U35: 282 | V35: =N35+V33 -> 218 | W35: =M35+W33 -> 334 | X35: 389 | Y35: 434 | Z35: 449 | AA35: 452 | AB35: 497 | AC35: 512 | AD35: 515 | AE35: 560 | AF35: 575 | AG35: 578 | AH35: =AM35+AH33 -> 617 | AI35: =AH35+AI33 -> 632 | AJ35: =AI35+AJ33 -> 634 | AK35: =AJ35+AK33 -> 637 | AL35: =AG35+AL33 -> 587 | AM35: =AL35+AM33 -> 599
A36: Validación | C36: Car | D36: Nom | E36: Nom | F36: Nom | G36: Letras | H36: Car | I36: Car | J36: Car | K36: Edo | L36: Num | M36: Fecha | N36: Car | O36: Car | P36: Edo | Q36: Car | R36: Car | S36: Num | T36: Num | U36: Num | V36: Car | W36: Car | X36: Correo | Y36: Car | Z36: Car | AA36: Pct | AB36: Car | AC36: Car | AD36: Pct | AE36: Car | AF36: Car | AG36: Pct | AH36: Num | AI36: Monto | AJ36: Car | AK36: Car | AL36: Num | AM36: Num
A37: Obligatorio >= 1 | C37: 1 | D37: 2 | E37: 1 | F37: 1 | G37: 1 | H37: 2 | I37: 2 | J37: 2 | K37: 2 | L37: 1 | M37: 1 | N37: 1 | O37: 1 | P37: 1 | Q37: 13 | R37: 18 | S37: 1 | T37: 1 | U37: 1 | V37: 1 | W37: 1 | X37: 0 | Y37: 1 | Z37: 1 | AA37: 1 | AB37: 0 | AC37: 0 | AD37: 0 | AE37: 0 | AF37: 0 | AG37: 0 | AH37: 0 | AI37: 1 | AJ37: 1 | AK37: 1 | AL37: 0 | AM37: 0
B38: * | C38: * | D38: * | E38: * | F38: * | G38: * | H38: * | I38: * | J38: * | K38: * | L38: * | M38: * | N38: * | O38: * | P38: * | Q38: * | S38: * | U38: * | V38: * | W38: * | X38: * | Y38: * | Z38: * | AH38: * | AI38: * | AJ38: * | AK38: *
A39: Registro | B39: No | C39: Id | D39: NOMBRE (S) | E39: APELLIDO PATERNO | F39: APELLIDO MATERNO | G39: NOMBRE EN TARJETA | H39: CALLE Y NUMERO | I39: COLONIA | J39: DELEGACIÓN O MUNICIPIO | K39: ESTADO | L39: CODIGO POSTAL | M39: FECHA DE NACIMIENTO | N39: SEXO | O39: CIUDAD DE NACIMIENTO | P39: ESTADO NACIMIENTO | Q39: RFC | R39: CURP | S39: TEL CASA | T39: TEL OFICINA | U39: CELULAR | V39: EDO CIVIL | W39: PROFESIÓN | X39: CORREO ELECTRONICO | Y39: NOMBRE COMPLETO DE BENEFICIARIO 1 | Z39: PARENTESCO 1 | AA39: % BENEF 1 | AB39: NOMBRE COMPLETO DE BENEFICIARIO 2 | AC39: PARENTESCO 2 | AD39: % BENEF 2 | AE39: NOMBRE COMPLETO DE BENEFICIARIO 3 | AF39: PARENTESCO 3 | AG39: % BENEF 3 | AH39: NUMERO DE TARJETA | AI39: INGRESO BRUTO MENSUAL | AJ39: IMAGEN | AK39: CN | AL39: CLIENTE (0) | AM39: CUENTA(0) | AN39: Fecha.RFCyCURP | AO39: Sexo.CURP | AP39: Edo.Nacimiento.Curp | AQ39: RFC.Calculado | AR39: CURP.Calculado
B40: =IF(ISNUMBER(B39),B39+1,1) -> 1 | C40: ="A" -> A | G40: =SUBSTITUTE(TRIM(LEFT(D40,IF(ISERROR(SEARCH(" ",D40)),LEN(D40),SEARCH(" ",D40)+1))&" "&E40),".","") ->  | AN40: =IF(ISNUMBER(Tabla.Datos[[#This Row],[FECHA DE NACIMIENTO]]),Tabla.Datos[[#This Row],[FECHA DE NACIMIENTO]],"#") -> # | AO40: =IF(Tabla.Datos[[#This Row],[SEXO]]="F","M",IF(Tabla.Datos[[#This Row],[SEXO]]="M","H","#")) -> # | AP40: =IFERROR(VLOOKUP(TRIM(Tabla.Datos[[#This Row],[ESTADO NACIMIENTO]]),Tabla.EDO.CURP[#Data],3,FALSE),"#") -> # | AQ40: =IFERROR(GeneraRFC(Tabla.Datos[[#This Row],[NOMBRE (S)]],Tabla.Datos[[#This Row],[APELLIDO PATERNO]],Tabla.Datos[[#This Row],[APELLIDO MATERNO]],Tabla.Datos[[#This Row],[Fecha.RFCyCURP]]),"#Falta Fecha de Nacimiento") -> #Falta Fecha de Nacimiento | AR40: =IFERROR(GeneraCURP(Tabla.Datos[[#This Row],[NOMBRE (S)]],Tabla.Datos[[#This Row],[APELLIDO PATERNO]],Tabla.Datos[[#This Row],[APELLIDO MATERNO]],Tabla.Datos[[#This Row],[Fecha.RFCyCURP]],Tabla.Datos[[#This Row],[Sexo.CURP]],Tabla.Datos[[#This Row],[Edo.Nacimiento.Curp]]),"#Falta Fecha de Nacimiento") -> #Falta Fecha de Nacimiento

Sheet Conversion (hidden)
A1: 1 | B1: =+CONCATENATE(C1,D1,E1,F1,G1,H1) -> C 000000000000000020190912 | C1: =Detalle!C22&REPT(" ",Detalle!$C$17-LEN(Detalle!C22)) -> C | D1: =Detalle!D22&REPT(" ",Detalle!$D$17-LEN(Detalle!D22)) ->  | E1: =REPT(0,Detalle!$E$17-LEN(Detalle!E22))&Detalle!E22 -> 000000000 | F1: =REPT(0,Detalle!$J$16-LEN(Detalle!J21))&Detalle!J21 -> 00 | G1: =REPT(0,Detalle!$F$17-LEN(Detalle!F22))&Detalle!F22 -> 00000 | H1: =TEXT(Detalle!G22,"AAAAMMDD") -> 20190912 | I1: =Detalle!I22&REPT(" ",Detalle!$C$17-LEN(Detalle!I22)) ->  | M1: =REPT(0,Detalle!$F$17-LEN(Detalle!V22))&Detalle!V22 -> 00000
A2: =IF(C2="a",1,"") -> 1 | B2: =+CONCATENATE(C2,D2,E2,F2,G2,H2,I2,J2,K2,L2,M2,N2,O2,P2,Q2,R2,S2,T2,U2,V2,W2,X2,Y2,Z2,AA2,AB2,AC2,AD2,AE2,AF2,AG2,AQ2) -> A 19000100 0 | C2: =LEFT(Detalle!C40&REPT(" ",Detalle!C$33),Detalle!C$33) -> A | D2: =LEFT(Detalle!D40&REPT(" ",Detalle!D$33),Detalle!D$33) ->  | E2: =LEFT(Detalle!E40&REPT(" ",Detalle!E$33),Detalle!E$33) ->  | F2: =LEFT(Detalle!F40&REPT(" ",Detalle!F$33),Detalle!F$33) ->  | G2: =LEFT(Detalle!G40&REPT(" ",Detalle!G$33),Detalle!G$33) ->  | H2: =LEFT(Detalle!H40&REPT(" ",Detalle!H$33),Detalle!H$33) ->  | I2: =LEFT(Detalle!I40&REPT(" ",Detalle!I$33),Detalle!I$33) ->  | J2: =LEFT(Detalle!J40&REPT(" ",Detalle!J$33),Detalle!J$33) ->  | K2: =LEFT(Detalle!K40&REPT(" ",Detalle!K$33),Detalle!K$33) ->  | L2: =LEFT(Detalle!N40&REPT(" ",Detalle!N$33),Detalle!N$33) ->  | M2: =LEFT(Detalle!V40&REPT(" ",Detalle!V$33),Detalle!V$33) ->  | N2: =LEFT(Detalle!Q40&REPT(" ",Detalle!Q$33),Detalle!Q$33) ->  | O2: =LEFT(Detalle!R40&REPT(" ",Detalle!R$33),Detalle!R$33) ->  | P2: =LEFT(Detalle!S40&REPT(" ",Detalle!S$33),Detalle!S$33) ->  | Q2: =LEFT(Detalle!T40&REPT(" ",Detalle!T$33),Detalle!T$33) ->  | R2: =LEFT(Detalle!U40&REPT(" ",Detalle!U$33),Detalle!U$33) ->  | S2: =LEFT(Detalle!L40&REPT(" ",Detalle!L$33),Detalle!L$33) ->  | T2: =LEFT(Detalle!O40&REPT(" ",Detalle!O$33),Detalle!O$33) ->  | U2: =LEFT(Detalle!P40&REPT(" ",Detalle!P$33),Detalle!P$33) ->  | V2: =LEFT(TEXT(Detalle!M40,"AAAAMMDD")&REPT(" ",Detalle!M$33),Detalle!M$33) -> 19000100 | W2: =LEFT(Detalle!W40&REPT(" ",Detalle!W$33),Detalle!W$33) ->  | X2: =LEFT(Detalle!X40&REPT(" ",Detalle!X$33),Detalle!X$33) ->  | Y2: =LEFT(Detalle!Y40&REPT(" ",Detalle!Y$33),Detalle!Y$33) ->  | Z2: =LEFT(Detalle!Z40&REPT(" ",Detalle!Z$33),Detalle!Z$33) ->  | AA2: =LEFT(TEXT(Detalle!AA40*100,"#")&" ",Detalle!AA$33) ->  | AB2: =LEFT(Detalle!AB40&REPT(" ",Detalle!AB$33),Detalle!AB$33) ->  | AC2: =LEFT(Detalle!AC40&REPT(" ",Detalle!AC$33),Detalle!AC$33) ->  | AD2: =LEFT(TEXT(Detalle!AD40*100,"#")&" ",Detalle!AD$33) ->  | AE2: =LEFT(Detalle!AE40&REPT(" ",Detalle!AE$33),Detalle!AE$33) ->  | AF2: =LEFT(Detalle!AF40&REPT(" ",Detalle!AF$33),Detalle!AF$33) ->  | AG2: =LEFT(TEXT(Detalle!AG40*100,"#")&" ",Detalle!AG$33) ->  | AH2: =LEFT(Detalle!AL40&REPT(" ",Detalle!AL$33),Detalle!AL$33) ->  | AI2: =LEFT(Detalle!AM40&REPT(" ",Detalle!AM$33),Detalle!AM$33) ->  | AJ2: =LEFT(Detalle!AH40&REPT(" ",Detalle!AH$33),Detalle!AH$33) ->  | AK2: =LEFT(TEXT(Detalle!AI40*100,"0")&REPT(" ",Detalle!AI$33),Detalle!AI$33) -> 0 | AL2: =LEFT(Detalle!AJ40&REPT(" ",Detalle!AJ$33),Detalle!AJ$33) ->  | AM2: =LEFT(Detalle!AK40&REPT(" ",Detalle!AK$33),Detalle!AK$33) ->  | AN2: =Detalle!AN40&REPT(" ",Detalle!AN$33-LEN(Detalle!AN40)) ->  | AO2: =Detalle!AO40&REPT(" ",Detalle!AO$33-LEN(Detalle!AO40)) ->  | AP2: =Detalle!AP40&REPT(" ",Detalle!AP$33-LEN(Detalle!AP40)) ->  | AQ2: =CONCATENATE(AH2,AI2,AJ2,AK2,AL2,AM2) -> 0 | AS2: =IFERROR(Detalle!AR40&REPT(" ",Detalle!#REF!-LEN(Detalle!AR40)),"") ->  | AT2: =IFERROR(Detalle!AT40&REPT(" ",Detalle!#REF!-LEN(Detalle!AT40)),"") ->  | AU2: =IFERROR(Detalle!#REF!&REPT(" ",Detalle!#REF!-LEN(Detalle!#REF!)),"") ->  | AV2: =IFERROR(Detalle!#REF!&REPT(" ",Detalle!#REF!-LEN(Detalle!#REF!)),"") ->  | AW2: =IFERROR(Detalle!#REF!&REPT(" ",Detalle!#REF!-LEN(Detalle!#REF!)),"") ->  | AX2: =IFERROR(Detalle!#REF!&REPT(" ",Detalle!#REF!-LEN(Detalle!#REF!)),"") ->  | AY2: =IFERROR(Detalle!#REF!&REPT(" ",Detalle!#REF!-LEN(Detalle!#REF!)),"") ->  | AZ2: =IFERROR(Detalle!#REF!&REPT(" ",Detalle!#REF!-LEN(Detalle!#REF!)),"") ->  | BA2: =IFERROR(Detalle!#REF!&REPT(" ",Detalle!#REF!-LEN(Detalle!#REF!)),"") ->  | BB2: =IFERROR(Detalle!#REF!&REPT(" ",Detalle!#REF!-LEN(Detalle!#REF!)),"") ->  | BC2: =IFERROR(Detalle!#REF!&REPT(" ",Detalle!#REF!-LEN(Detalle!#REF!)),"") ->  | BD2: =IFERROR(Detalle!#REF!&REPT(" ",Detalle!#REF!-LEN(Detalle!#REF!)),"") ->  | BE2: =IFERROR(Detalle!#REF!&REPT(" ",Detalle!#REF!-LEN(Detalle!#REF!)),"") ->  | BF2: =IFERROR(Detalle!#REF!&REPT(" ",Detalle!#REF!-LEN(Detalle!#REF!)),"") ->  | BG2: =IFERROR(Detalle!#REF!&REPT(" ",Detalle!#REF!-LEN(Detalle!#REF!)),"") ->  | BH2: =IFERROR(Detalle!#REF!&REPT(" ",Detalle!#REF!-LEN(Detalle!#REF!)),"") ->  | BI2: =IFERROR(Detalle!#REF!&REPT(" ",Detalle!#REF!-LEN(Detalle!#REF!)),"") ->  | BJ2: =IFERROR(Detalle!#REF!&REPT(" ",Detalle!#REF!-LEN(Detalle!#REF!)),"") ->  | BK2: =IFERROR(Detalle!#REF!&REPT(" ",Detalle!#REF!-LEN(Detalle!#REF!)),"") ->  | BL2: =IFERROR(Detalle!#REF!&REPT(" ",Detalle!#REF!-LEN(Detalle!#REF!)),"") ->  | BM2: =IFERROR(Detalle!#REF!&REPT(" ",Detalle!#REF!-LEN(Detalle!#REF!)),"") ->  | BN2: =IFERROR(Detalle!#REF!&REPT(" ",Detalle!#REF!-LEN(Detalle!#REF!)),"") -> 

Sheet Catálogos (hidden)
A1: NO ELIMINAR CELDAS EN AMARILLO
A3: Valores
A4: Edad Mínima | B4: 18 | C4: años
A9: Estado Civil
A10: Descripción | B10: Vacío | C10: Vacío 2 | D10: Código E.C.
A11: 1 - SOLTERO(A) | D11: =LEFT(A11,1) -> 1
A12: 2 - CASADO(A) | D12: 2
A13: 3 - DIVORCIADO(A) | D13: 3
A14: 4 - VIUDO(A) | D14: 4
A15: 5 - COHABITANDO | D15: 5
A16: 6 - SEPARADO(A) | D16: 6
A17: 7 - CASADO(A) BIENES SEPARADOS | D17: 7
A21: Profesiones
A22: Descripción | B22: Vacío | C22: Vacío 2 | D22: Código E.C.
A23: 1 - ACCIONISTA | D23: =LEFT(A23,1) -> 1
A24: 2 - COMERCIANTE | D24: 2
A25: 3 - COMISIONISTA | D25: 3
A26: 4 - EMPLEADO | D26: 4
A27: 5 - INDEPENDIENTE | D27: 5
A28: 6 - OBRERO | D28: 6
A29: 7 - EMPRESARIO | D29: 7
A30: 8 - PRESTADOR DE SEVICIOS | D30: 8
A31: 9 - OTROS | D31: 9
A34: Parentesco
A35: Descripción | B35: Vacío | C35: Vacío 2 | D35: Código E.C.
A36: A - PADRE | D36: =LEFT(A36,1) -> A
A37: B - MADRE | D37: B
A38: C - ESPOSO (A) | D38: C
A39: D - HIJO (A) | D39: D
A40: E - HERMANO(A) | D40: E
A41: F - ABUELO(A) | D41: F
A42: G - NIETO(A) | D42: G
A43: H - TIO(A) | D43: H
A44: I - PRIMO(A) | D44: I
A45: J - SOBRINO(A) | D45: J
A46: K - CUÑADO(A) | D46: K
A47: L - YERNO | D47: L
A48: M - NUERA | D48: M
A49: N - AMIGO(A) | D49: N
A50: O - CONOCIDO(A) | D50: O
A51: P - OTRO | D51: P
A55: Caracteres Válidos
A56: Cadena Caracteres | B56: Descripción | C56: Vacío 2 | D56: Concatenado
A57: ABCDEFGHIJKLMNÑOPQRSTUVWXYZ | B57: Letras y Espacio | D57: =Tabla.Caracteres.Validos[[#This Row],[Cadena Caracteres]] -> ABCDEFGHIJKLMNÑOPQRSTUVWXYZ
A58: .-/ | B58: Especiales (incluye espacio) | D58: =D57&Tabla.Caracteres.Validos[[#This Row],[Cadena Caracteres]] -> ABCDEFGHIJKLMNÑOPQRSTUVWXYZ .-/
A59: 0123456789 | B59: Dígitos | D59: =D58&Tabla.Caracteres.Validos[[#This Row],[Cadena Caracteres]] -> ABCDEFGHIJKLMNÑOPQRSTUVWXYZ .-/0123456789
A60: =SUBTOTAL(103,Tabla.Caracteres.Validos[Cadena Caracteres]) -> 3 | D60: =D59 -> ABCDEFGHIJKLMNÑOPQRSTUVWXYZ .-/0123456789
A62: Palabras Inconvenientes
A63: Palabra Inconveniente | B63: Sustituye | C63: Vacía | D63: Concatena
A64: BACA | B64: BXCA | D64: =Tabla.Palabras.Inconvenientes[[#This Row],[Palabra Inconveniente]]&"*" -> BACA*
A65: BAKA | B65: BXKA | D65: =D64&Tabla.Palabras.Inconvenientes[[#This Row],[Palabra Inconveniente]]&"*" -> BACA*BAKA*
A66: BUEI | B66: BXEI | D66: =D65&Tabla.Palabras.Inconvenientes[[#This Row],[Palabra Inconveniente]]&"*" -> BACA*BAKA*BUEI*
A67: BUEY | B67: BXEY | D67: =D66&Tabla.Palabras.Inconvenientes[[#This Row],[Palabra Inconveniente]]&"*" -> BACA*BAKA*BUEI*BUEY*
A68: CACA | B68: CXCA | D68: =D67&Tabla.Palabras.Inconvenientes[[#This Row],[Palabra Inconveniente]]&"*" -> BACA*BAKA*BUEI*BUEY*CACA*
A69: CACO | B69: CXCO | D69: =D68&Tabla.Palabras.Inconvenientes[[#This Row],[Palabra Inconveniente]]&"*" -> BACA*BAKA*BUEI*BUEY*CACA*CACO*
A70: CAGA | B70: CXGA | D70: =D69&Tabla.Palabras.Inconvenientes[[#This Row],[Palabra Inconveniente]]&"*" -> BACA*BAKA*BUEI*BUEY*CACA*CACO*CAGA*
A71: CAGO | B71: CXGO | D71: =D70&Tabla.Palabras.Inconvenientes[[#This Row],[Palabra Inconveniente]]&"*" -> BACA*BAKA*BUEI*BUEY*CACA*CACO*CAGA*CAGO*
A72: CAKA | B72: CXKA | D72: =D71&Tabla.Palabras.Inconvenientes[[#This Row],[Palabra Inconveniente]]&"*" -> BACA*BAKA*BUEI*BUEY*CACA*CACO*CAGA*CAGO*CAKA*
A73: CAKO | B73: CXKO | D73: =D72&Tabla.Palabras.Inconvenientes[[#This Row],[Palabra Inconveniente]]&"*" -> BACA*BAKA*BUEI*BUEY*CACA*CACO*CAGA*CAGO*CAKA*CAKO*
A74: COGE | B74: CXGE | D74: =D73&Tabla.Palabras.Inconvenientes[[#This Row],[Palabra Inconveniente]]&"*" -> BACA*BAKA*BUEI*BUEY*CACA*CACO*CAGA*CAGO*CAKA*CAKO*COGE*
A75: COGI | B75: CXGI | D75: =D74&Tabla.Palabras.Inconvenientes[[#This Row],[Palabra Inconveniente]]&"*" -> BACA*BAKA*BUEI*BUEY*CACA*CACO*CAGA*CAGO*CAKA*CAKO*COGE*COGI*
A76: COJA | B76: CXJA | D76: =D75&Tabla.Palabras.Inconvenientes[[#This Row],[Palabra Inconveniente]]&"*" -> BACA*BAKA*BUEI*BUEY*CACA*CACO*CAGA*CAGO*CAKA*CAKO*COGE*COGI*COJA*
A77: COJE | B77: CXJE | D77: =D76&Tabla.Palabras.Inconvenientes[[#This Row],[Palabra Inconveniente]]&"*" -> BACA*BAKA*BUEI*BUEY*CACA*CACO*CAGA*CAGO*CAKA*CAKO*COGE*COGI*COJA*COJE*
A78: COJI | B78: CXJI | D78: =D77&Tabla.Palabras.Inconvenientes[[#This Row],[Palabra Inconveniente]]&"*" -> BACA*BAKA*BUEI*BUEY*CACA*CACO*CAGA*CAGO*CAKA*CAKO*COGE*COGI*COJA*COJE*COJI*
A79: COJO | B79: CXJO | D79: =D78&Tabla.Palabras.Inconvenientes[[#This Row],[Palabra Inconveniente]]&"*" -> BACA*BAKA*BUEI*BUEY*CACA*CACO*CAGA*CAGO*CAKA*CAKO*COGE*COGI*COJA*COJE*COJI*COJO*
A80: COLA | B80: CXLA | D80: =D79&Tabla.Palabras.Inconvenientes[[#This Row],[Palabra Inconveniente]]&"*" -> BACA*BAKA*BUEI*BUEY*CACA*CACO*CAGA*CAGO*CAKA*CAKO*COGE*COGI*COJA*COJE*COJI*COJO*COLA*
A81: CULO | B81: CXLO | D81: =D80&Tabla.Palabras.Inconvenientes[[#This Row],[Palabra Inconveniente]]&"*" -> BACA*BAKA*BUEI*BUEY*CACA*CACO*CAGA*CAGO*CAKA*CAKO*COGE*COGI*COJA*COJE*COJI*COJO*COLA*CULO*
A82: FALO | B82: FXLO | D82: =D81&Tabla.Palabras.Inconvenientes[[#This Row],[Palabra Inconveniente]]&"*" -> BACA*BAKA*BUEI*BUEY*CACA*CACO*CAGA*CAGO*CAKA*CAKO*COGE*COGI*COJA*COJE*COJI*COJO*COLA*CULO*FALO*
A83: FETO | B83: FXTO | D83: =D82&Tabla.Palabras.Inconvenientes[[#This Row],[Palabra Inconveniente]]&"*" -> BACA*BAKA*BUEI*BUEY*CACA*CACO*CAGA*CAGO*CAKA*CAKO*COGE*COGI*COJA*COJE*COJI*COJO*COLA*CULO*FALO*FETO*
A84: GETA | B84: GXTA | D84: =D83&Tabla.Palabras.Inconvenientes[[#This Row],[Palabra Inconveniente]]&"*" -> BACA*BAKA*BUEI*BUEY*CACA*CACO*CAGA*CAGO*CAKA*CAKO*COGE*COGI*COJA*COJE*COJI*COJO*COLA*CULO*FALO*FETO*GETA*
A85: GUEI | B85: GXEI | D85: =D84&Tabla.Palabras.Inconvenientes[[#This Row],[Palabra Inconveniente]]&"*" -> BACA*BAKA*BUEI*BUEY*CACA*CACO*CAGA*CAGO*CAKA*CAKO*COGE*COGI*COJA*COJE*COJI*COJO*COLA*CULO*FALO*FETO*GETA*GUEI*
A86: GUEY | B86: GXEY | D86: =D85&Tabla.Palabras.Inconvenientes[[#This Row],[Palabra Inconveniente]]&"*" -> BACA*BAKA*BUEI*BUEY*CACA*CACO*CAGA*CAGO*CAKA*CAKO*COGE*COGI*COJA*COJE*COJI*COJO*COLA*CULO*FALO*FETO*GETA*GUEI*GUEY*
A87: JETA | B87: JXTA | D87: =D86&Tabla.Palabras.Inconvenientes[[#This Row],[Palabra Inconveniente]]&"*" -> BACA*BAKA*BUEI*BUEY*CACA*CACO*CAGA*CAGO*CAKA*CAKO*COGE*COGI*COJA*COJE*COJI*COJO*COLA*CULO*FALO*FETO*GETA*GUEI*GUEY*JETA*
A88: JOTO | B88: JXTO | D88: =D87&Tabla.Palabras.Inconvenientes[[#This Row],[Palabra Inconveniente]]&"*" -> BACA*BAKA*BUEI*BUEY*CACA*CACO*CAGA*CAGO*CAKA*CAKO*COGE*COGI*COJA*COJE*COJI*COJO*COLA*CULO*FALO*FETO*GETA*GUEI*GUEY*JETA*JOTO*
A89: KACA | B89: KXCA | D89: =D88&Tabla.Palabras.Inconvenientes[[#This Row],[Palabra Inconveniente]]&"*" -> BACA*BAKA*BUEI*BUEY*CACA*CACO*CAGA*CAGO*CAKA*CAKO*COGE*COGI*COJA*COJE*COJI*COJO*COLA*CULO*FALO*FETO*GETA*GUEI*GUEY*JETA*JOTO*KACA*
A90: KACO | B90: KXCO | D90: =D89&Tabla.Palabras.Inconvenientes[[#This Row],[Palabra Inconveniente]]&"*" -> BACA*BAKA*BUEI*BUEY*CACA*CACO*CAGA*CAGO*CAKA*CAKO*COGE*COGI*COJA*COJE*COJI*COJO*COLA*CULO*FALO*FETO*GETA*GUEI*GUEY*JETA*JOTO*KACA*KACO*
A91: KAGA | B91: KXGA | D91: =D90&Tabla.Palabras.Inconvenientes[[#This Row],[Palabra Inconveniente]]&"*" -> BACA*BAKA*BUEI*BUEY*CACA*CACO*CAGA*CAGO*CAKA*CAKO*COGE*COGI*COJA*COJE*COJI*COJO*COLA*CULO*FALO*FETO*GETA*GUEI*GUEY*JETA*JOTO*KACA*KACO*KAGA*
A92: KAGO | B92: KXGO | D92: =D91&Tabla.Palabras.Inconvenientes[[#This Row],[Palabra Inconveniente]]&"*" -> BACA*BAKA*BUEI*BUEY*CACA*CACO*CAGA*CAGO*CAKA*CAKO*COGE*COGI*COJA*COJE*COJI*COJO*COLA*CULO*FALO*FETO*GETA*GUEI*GUEY*JETA*JOTO*KACA*KACO*KAGA*KAGO*
A93: KAKA | B93: KXKA | D93: =D92&Tabla.Palabras.Inconvenientes[[#This Row],[Palabra Inconveniente]]&"*" -> BACA*BAKA*BUEI*BUEY*CACA*CACO*CAGA*CAGO*CAKA*CAKO*COGE*COGI*COJA*COJE*COJI*COJO*COLA*CULO*FALO*FETO*GETA*GUEI*GUEY*JETA*JOTO*KACA*KACO*KAGA*KAGO*KAKA*
A94: KAKO | B94: KXKO | D94: =D93&Tabla.Palabras.Inconvenientes[[#This Row],[Palabra Inconveniente]]&"*" -> BACA*BAKA*BUEI*BUEY*CACA*CACO*CAGA*CAGO*CAKA*CAKO*COGE*COGI*COJA*COJE*COJI*COJO*COLA*CULO*FALO*FETO*GETA*GUEI*GUEY*JETA*JOTO*KACA*KACO*KAGA*KAGO*KAKA*KAKO*
A95: KOGE | B95: KXGE | D95: =D94&Tabla.Palabras.Inconvenientes[[#This Row],[Palabra Inconveniente]]&"*" -> BACA*BAKA*BUEI*BUEY*CACA*CACO*CAGA*CAGO*CAKA*CAKO*COGE*COGI*COJA*COJE*COJI*COJO*COLA*CULO*FALO*FETO*GETA*GUEI*GUEY*JETA*JOTO*KACA*KACO*KAGA*KAGO*KAKA*KAKO*KOGE*
A96: KOGI | B96: KXGI | D96: =D95&Tabla.Palabras.Inconvenientes[[#This Row],[Palabra Inconveniente]]&"*" -> BACA*BAKA*BUEI*BUEY*CACA*CACO*CAGA*CAGO*CAKA*CAKO*COGE*COGI*COJA*COJE*COJI*COJO*COLA*CULO*FALO*FETO*GETA*GUEI*GUEY*JETA*JOTO*KACA*KACO*KAGA*KAGO*KAKA*KAKO*KOGE*KOGI*
A97: KOJA | B97: KXJA | D97: =D96&Tabla.Palabras.Inconvenientes[[#This Row],[Palabra Inconveniente]]&"*" -> BACA*BAKA*BUEI*BUEY*CACA*CACO*CAGA*CAGO*CAKA*CAKO*COGE*COGI*COJA*COJE*COJI*COJO*COLA*CULO*FALO*FETO*GETA*GUEI*GUEY*JETA*JOTO*KACA*KACO*KAGA*KAGO*KAKA*KAKO*KOGE*KOGI*KOJA*
A98: KOJE | B98: KXJE | D98: =D97&Tabla.Palabras.Inconvenientes[[#This Row],[Palabra Inconveniente]]&"*" -> BACA*BAKA*BUEI*BUEY*CACA*CACO*CAGA*CAGO*CAKA*CAKO*COGE*COGI*COJA*COJE*COJI*COJO*COLA*CULO*FALO*FETO*GETA*GUEI*GUEY*JETA*JOTO*KACA*KACO*KAGA*KAGO*KAKA*KAKO*KOGE*KOGI*KOJA*KOJE*
A99: KOJI | B99: KXJI | D99: =D98&Tabla.Palabras.Inconvenientes[[#This Row],[Palabra Inconveniente]]&"*" -> BACA*BAKA*BUEI*BUEY*CACA*CACO*CAGA*CAGO*CAKA*CAKO*COGE*COGI*COJA*COJE*COJI*COJO*COLA*CULO*FALO*FETO*GETA*GUEI*GUEY*JETA*JOTO*KACA*KACO*KAGA*KAGO*KAKA*KAKO*KOGE*KOGI*KOJA*KOJE*KOJI*
A100: KOJO | B100: KXJO | D100: =D99&Tabla.Palabras.Inconvenientes[[#This Row],[Palabra Inconveniente]]&"*" -> BACA*BAKA*BUEI*BUEY*CACA*CACO*CAGA*CAGO*CAKA*CAKO*COGE*COGI*COJA*COJE*COJI*COJO*COLA*CULO*FALO*FETO*GETA*GUEI*GUEY*JETA*JOTO*KACA*KACO*KAGA*KAGO*KAKA*KAKO*KOGE*KOGI*KOJA*KOJE*KOJI*KOJO*
A101: KOLA | B101: KXLA | D101: =D100&Tabla.Palabras.Inconvenientes[[#This Row],[Palabra Inconveniente]]&"*" -> BACA*BAKA*BUEI*BUEY*CACA*CACO*CAGA*CAGO*CAKA*CAKO*COGE*COGI*COJA*COJE*COJI*COJO*COLA*CULO*FALO*FETO*GETA*GUEI*GUEY*JETA*JOTO*KACA*KACO*KAGA*KAGO*KAKA*KAKO*KOGE*KOGI*KOJA*KOJE*KOJI*KOJO*KOLA*
A102: KULO | B102: KXLO | D102: =D101&Tabla.Palabras.Inconvenientes[[#This Row],[Palabra Inconveniente]]&"*" -> BACA*BAKA*BUEI*BUEY*CACA*CACO*CAGA*CAGO*CAKA*CAKO*COGE*COGI*COJA*COJE*COJI*COJO*COLA*CULO*FALO*FETO*GETA*GUEI*GUEY*JETA*JOTO*KACA*KACO*KAGA*KAGO*KAKA*KAKO*KOGE*KOGI*KOJA*KOJE*KOJI*KOJO*KOLA*KULO*
A103: LILO | B103: LXLO | D103: =D102&Tabla.Palabras.Inconvenientes[[#This Row],[Palabra Inconveniente]]&"*" -> BACA*BAKA*BUEI*BUEY*CACA*CACO*CAGA*CAGO*CAKA*CAKO*COGE*COGI*COJA*COJE*COJI*COJO*COLA*CULO*FALO*FETO*GETA*GUEI*GUEY*JETA*JOTO*KACA*KACO*KAGA*KAGO*KAKA*KAKO*KOGE*KOGI*KOJA*KOJE*KOJI*KOJO*KOLA*KULO*LILO*
A104: LOCA | B104: LXCA | D104: =D103&Tabla.Palabras.Inconvenientes[[#This Row],[Palabra Inconveniente]]&"*" -> BACA*BAKA*BUEI*BUEY*CACA*CACO*CAGA*CAGO*CAKA*CAKO*COGE*COGI*COJA*COJE*COJI*COJO*COLA*CULO*FALO*FETO*GETA*GUEI*GUEY*JETA*JOTO*KACA*KACO*KAGA*KAGO*KAKA*KAKO*KOGE*KOGI*KOJA*KOJE*KOJI*KOJO*KOLA*KULO*LILO*LOCA*
A105: LOCO | B105: LXCO | D105: =D104&Tabla.Palabras.Inconvenientes[[#This Row],[Palabra Inconveniente]]&"*" -> BACA*BAKA*BUEI*BUEY*CACA*CACO*CAGA*CAGO*CAKA*CAKO*COGE*COGI*COJA*COJE*COJI*COJO*COLA*CULO*FALO*FETO*GETA*GUEI*GUEY*JETA*JOTO*KACA*KACO*KAGA*KAGO*KAKA*KAKO*KOGE*KOGI*KOJA*KOJE*KOJI*KOJO*KOLA*KULO*LILO*LOCA*LOCO*
A106: LOKA | B106: LXKA | D106: =D105&Tabla.Palabras.Inconvenientes[[#This Row],[Palabra Inconveniente]]&"*" -> BACA*BAKA*BUEI*BUEY*CACA*CACO*CAGA*CAGO*CAKA*CAKO*COGE*COGI*COJA*COJE*COJI*COJO*COLA*CULO*FALO*FETO*GETA*GUEI*GUEY*JETA*JOTO*KACA*KACO*KAGA*KAGO*KAKA*KAKO*KOGE*KOGI*KOJA*KOJE*KOJI*KOJO*KOLA*KULO*LILO*LOCA*LOCO*LOKA*
A107: LOKO | B107: LXKO | D107: =D106&Tabla.Palabras.Inconvenientes[[#This Row],[Palabra Inconveniente]]&"*" -> BACA*BAKA*BUEI*BUEY*CACA*CACO*CAGA*CAGO*CAKA*CAKO*COGE*COGI*COJA*COJE*COJI*COJO*COLA*CULO*FALO*FETO*GETA*GUEI*GUEY*JETA*JOTO*KACA*KACO*KAGA*KAGO*KAKA*KAKO*KOGE*KOGI*KOJA*KOJE*KOJI*KOJO*KOLA*KULO*LILO*LOCA*LOCO*LOKA*LOKO*
A108: MAME | B108: MXME | D108: =D107&Tabla.Palabras.Inconvenientes[[#This Row],[Palabra Inconveniente]]&"*" -> BACA*BAKA*BUEI*BUEY*CACA*CACO*CAGA*CAGO*CAKA*CAKO*COGE*COGI*COJA*COJE*COJI*COJO*COLA*CULO*FALO*FETO*GETA*GUEI*GUEY*JETA*JOTO*KACA*KACO*KAGA*KAGO*KAKA*KAKO*KOGE*KOGI*KOJA*KOJE*KOJI*KOJO*KOLA*KULO*LILO*LOCA*LOCO*LOKA*LOKO*MAME*
A109: MAMO | B109: MXMO | D109: =D108&Tabla.Palabras.Inconvenientes[[#This Row],[Palabra Inconveniente]]&"*" -> BACA*BAKA*BUEI*BUEY*CACA*CACO*CAGA*CAGO*CAKA*CAKO*COGE*COGI*COJA*COJE*COJI*COJO*COLA*CULO*FALO*FETO*GETA*GUEI*GUEY*JETA*JOTO*KACA*KACO*KAGA*KAGO*KAKA*KAKO*KOGE*KOGI*KOJA*KOJE*KOJI*KOJO*KOLA*KULO*LILO*LOCA*LOCO*LOKA*LOKO*MAME*MAMO*
A110: MEAR | B110: MXAR | D110: =D109&Tabla.Palabras.Inconvenientes[[#This Row],[Palabra Inconveniente]]&"*" -> BACA*BAKA*BUEI*BUEY*CACA*CACO*CAGA*CAGO*CAKA*CAKO*COGE*COGI*COJA*COJE*COJI*COJO*COLA*CULO*FALO*FETO*GETA*GUEI*GUEY*JETA*JOTO*KACA*KACO*KAGA*KAGO*KAKA*KAKO*KOGE*KOGI*KOJA*KOJE*KOJI*KOJO*KOLA*KULO*LILO*LOCA*LOCO*LOKA*LOKO*MAME*MAMO*MEAR*
A111: MEAS | B111: MXAS | D111: =D110&Tabla.Palabras.Inconvenientes[[#This Row],[Palabra Inconveniente]]&"*" -> BACA*BAKA*BUEI*BUEY*CACA*CACO*CAGA*CAGO*CAKA*CAKO*COGE*COGI*COJA*COJE*COJI*COJO*COLA*CULO*FALO*FETO*GETA*GUEI*GUEY*JETA*JOTO*KACA*KACO*KAGA*KAGO*KAKA*KAKO*KOGE*KOGI*KOJA*KOJE*KOJI*KOJO*KOLA*KULO*LILO*LOCA*LOCO*LOKA*LOKO*MAME*MAMO*MEAR*MEAS*
A112: MEON | B112: MXON | D112: =D111&Tabla.Palabras.Inconvenientes[[#This Row],[Palabra Inconveniente]]&"*" -> BACA*BAKA*BUEI*BUEY*CACA*CACO*CAGA*CAGO*CAKA*CAKO*COGE*COGI*COJA*COJE*COJI*COJO*COLA*CULO*FALO*FETO*GETA*GUEI*GUEY*JETA*JOTO*KACA*KACO*KAGA*KAGO*KAKA*KAKO*KOGE*KOGI*KOJA*KOJE*KOJI*KOJO*KOLA*KULO*LILO*LOCA*LOCO*LOKA*LOKO*MAME*MAMO*MEAR*MEAS*MEON*
A113: MIAR | B113: MXAR | D113: =D112&Tabla.Palabras.Inconvenientes[[#This Row],[Palabra Inconveniente]]&"*" -> BACA*BAKA*BUEI*BUEY*CACA*CACO*CAGA*CAGO*CAKA*CAKO*COGE*COGI*COJA*COJE*COJI*COJO*COLA*CULO*FALO*FETO*GETA*GUEI*GUEY*JETA*JOTO*KACA*KACO*KAGA*KAGO*KAKA*KAKO*KOGE*KOGI*KOJA*KOJE*KOJI*KOJO*KOLA*KULO*LILO*LOCA*LOCO*LOKA*LOKO*MAME*MAMO*MEAR*MEAS*MEON*MIAR*
A114: MION | B114: MXON | D114: =D113&Tabla.Palabras.Inconvenientes[[#This Row],[Palabra Inconveniente]]&"*" -> BACA*BAKA*BUEI*BUEY*CACA*CACO*CAGA*CAGO*CAKA*CAKO*COGE*COGI*COJA*COJE*COJI*COJO*COLA*CULO*FALO*FETO*GETA*GUEI*GUEY*JETA*JOTO*KACA*KACO*KAGA*KAGO*KAKA*KAKO*KOGE*KOGI*KOJA*KOJE*KOJI*KOJO*KOLA*KULO*LILO*LOCA*LOCO*LOKA*LOKO*MAME*MAMO*MEAR*MEAS*MEON*MIAR*MION*
A115: MOCO | B115: MXCO | D115: =D114&Tabla.Palabras.Inconvenientes[[#This Row],[Palabra Inconveniente]]&"*" -> BACA*BAKA*BUEI*BUEY*CACA*CACO*CAGA*CAGO*CAKA*CAKO*COGE*COGI*COJA*COJE*COJI*COJO*COLA*CULO*FALO*FETO*GETA*GUEI*GUEY*JETA*JOTO*KACA*KACO*KAGA*KAGO*KAKA*KAKO*KOGE*KOGI*KOJA*KOJE*KOJI*KOJO*KOLA*KULO*LILO*LOCA*LOCO*LOKA*LOKO*MAME*MAMO*MEAR*MEAS*MEON*MIAR*MION*MOCO*
A116: MOKO | B116: MXKO | D116: =D115&Tabla.Palabras.Inconvenientes[[#This Row],[Palabra Inconveniente]]&"*" -> BACA*BAKA*BUEI*BUEY*CACA*CACO*CAGA*CAGO*CAKA*CAKO*COGE*COGI*COJA*COJE*COJI*COJO*COLA*CULO*FALO*FETO*GETA*GUEI*GUEY*JETA*JOTO*KACA*KACO*KAGA*KAGO*KAKA*KAKO*KOGE*KOGI*KOJA*KOJE*KOJI*KOJO*KOLA*KULO*LILO*LOCA*LOCO*LOKA*LOKO*MAME*MAMO*MEAR*MEAS*MEON*MIAR*MION*MOCO*MOKO*
A117: MULA | B117: MXLA | D117: =D116&Tabla.Palabras.Inconvenientes[[#This Row],[Palabra Inconveniente]]&"*" -> BACA*BAKA*BUEI*BUEY*CACA*CACO*CAGA*CAGO*CAKA*CAKO*COGE*COGI*COJA*COJE*COJI*COJO*COLA*CULO*FALO*FETO*GETA*GUEI*GUEY*JETA*JOTO*KACA*KACO*KAGA*KAGO*KAKA*KAKO*KOGE*KOGI*KOJA*KOJE*KOJI*KOJO*KOLA*KULO*LILO*LOCA*LOCO*LOKA*LOKO*MAME*MAMO*MEAR*MEAS*MEON*MIAR*MION*MOCO*MOKO*MULA*
A118: MULO | B118: MXLO | D118: =D117&Tabla.Palabras.Inconvenientes[[#This Row],[Palabra Inconveniente]]&"*" -> BACA*BAKA*BUEI*BUEY*CACA*CACO*CAGA*CAGO*CAKA*CAKO*COGE*COGI*COJA*COJE*COJI*COJO*COLA*CULO*FALO*FETO*GETA*GUEI*GUEY*JETA*JOTO*KACA*KACO*KAGA*KAGO*KAKA*KAKO*KOGE*KOGI*KOJA*KOJE*KOJI*KOJO*KOLA*KULO*LILO*LOCA*LOCO*LOKA*LOKO*MAME*MAMO*MEAR*MEAS*MEON*MIAR*MION*MOCO*MOKO*MULA*MULO*
A119: NACA | B119: NXCA | D119: =D118&Tabla.Palabras.Inconvenientes[[#This Row],[Palabra Inconveniente]]&"*" -> BACA*BAKA*BUEI*BUEY*CACA*CACO*CAGA*CAGO*CAKA*CAKO*COGE*COGI*COJA*COJE*COJI*COJO*COLA*CULO*FALO*FETO*GETA*GUEI*GUEY*JETA*JOTO*KACA*KACO*KAGA*KAGO*KAKA*KAKO*KOGE*KOGI*KOJA*KOJE*KOJI*KOJO*KOLA*KULO*LILO*LOCA*LOCO*LOKA*LOKO*MAME*MAMO*MEAR*MEAS*MEON*MIAR*MION*MOCO*MOKO*MULA*MULO*NACA*
A120: NACO | B120: NXCO | D120: =D119&Tabla.Palabras.Inconvenientes[[#This Row],[Palabra Inconveniente]]&"*" -> BACA*BAKA*BUEI*BUEY*CACA*CACO*CAGA*CAGO*CAKA*CAKO*COGE*COGI*COJA*COJE*COJI*COJO*COLA*CULO*FALO*FETO*GETA*GUEI*GUEY*JETA*JOTO*KACA*KACO*KAGA*KAGO*KAKA*KAKO*KOGE*KOGI*KOJA*KOJE*KOJI*KOJO*KOLA*KULO*LILO*LOCA*LOCO*LOKA*LOKO*MAME*MAMO*MEAR*MEAS*MEON*MIAR*MION*MOCO*MOKO*MULA*MULO*NACA*NACO*
A121: PEDA | B121: PXDA | D121: =D120&Tabla.Palabras.Inconvenientes[[#This Row],[Palabra Inconveniente]]&"*" -> BACA*BAKA*BUEI*BUEY*CACA*CACO*CAGA*CAGO*CAKA*CAKO*COGE*COGI*COJA*COJE*COJI*COJO*COLA*CULO*FALO*FETO*GETA*GUEI*GUEY*JETA*JOTO*KACA*KACO*KAGA*KAGO*KAKA*KAKO*KOGE*KOGI*KOJA*KOJE*KOJI*KOJO*KOLA*KULO*LILO*LOCA*LOCO*LOKA*LOKO*MAME*MAMO*MEAR*MEAS*MEON*MIAR*MION*MOCO*MOKO*MULA*MULO*NACA*NACO*PEDA*
A122: PEDO | B122: PXDO | D122: =D121&Tabla.Palabras.Inconvenientes[[#This Row],[Palabra Inconveniente]]&"*" -> BACA*BAKA*BUEI*BUEY*CACA*CACO*CAGA*CAGO*CAKA*CAKO*COGE*COGI*COJA*COJE*COJI*COJO*COLA*CULO*FALO*FETO*GETA*GUEI*GUEY*JETA*JOTO*KACA*KACO*KAGA*KAGO*KAKA*KAKO*KOGE*KOGI*KOJA*KOJE*KOJI*KOJO*KOLA*KULO*LILO*LOCA*LOCO*LOKA*LOKO*MAME*MAMO*MEAR*MEAS*MEON*MIAR*MION*MOCO*MOKO*MULA*MULO*NACA*NACO*PEDA*PEDO*
A123: PENE | B123: PXNE | D123: =D122&Tabla.Palabras.Inconvenientes[[#This Row],[Palabra Inconveniente]]&"*" -> BACA*BAKA*BUEI*BUEY*CACA*CACO*CAGA*CAGO*CAKA*CAKO*COGE*COGI*COJA*COJE*COJI*COJO*COLA*CULO*FALO*FETO*GETA*GUEI*GUEY*JETA*JOTO*KACA*KACO*KAGA*KAGO*KAKA*KAKO*KOGE*KOGI*KOJA*KOJE*KOJI*KOJO*KOLA*KULO*LILO*LOCA*LOCO*LOKA*LOKO*MAME*MAMO*MEAR*MEAS*MEON*MIAR*MION*MOCO*MOKO*MULA*MULO*NACA*NACO*PEDA*PEDO*PENE*
A124: PIPI | B124: PXPI | D124: =D123&Tabla.Palabras.Inconvenientes[[#This Row],[Palabra Inconveniente]]&"*" -> BACA*BAKA*BUEI*BUEY*CACA*CACO*CAGA*CAGO*CAKA*CAKO*COGE*COGI*COJA*COJE*COJI*COJO*COLA*CULO*FALO*FETO*GETA*GUEI*GUEY*JETA*JOTO*KACA*KACO*KAGA*KAGO*KAKA*KAKO*KOGE*KOGI*KOJA*KOJE*KOJI*KOJO*KOLA*KULO*LILO*LOCA*LOCO*LOKA*LOKO*MAME*MAMO*MEAR*MEAS*MEON*MIAR*MION*MOCO*MOKO*MULA*MULO*NACA*NACO*PEDA*PEDO*PENE*PIPI*
A125: PITO | B125: PXTO | D125: =D124&Tabla.Palabras.Inconvenientes[[#This Row],[Palabra Inconveniente]]&"*" -> BACA*BAKA*BUEI*BUEY*CACA*CACO*CAGA*CAGO*CAKA*CAKO*COGE*COGI*COJA*COJE*COJI*COJO*COLA*CULO*FALO*FETO*GETA*GUEI*GUEY*JETA*JOTO*KACA*KACO*KAGA*KAGO*KAKA*KAKO*KOGE*KOGI*KOJA*KOJE*KOJI*KOJO*KOLA*KULO*LILO*LOCA*LOCO*LOKA*LOKO*MAME*MAMO*MEAR*MEAS*MEON*MIAR*MION*MOCO*MOKO*MULA*MULO*NACA*NACO*PEDA*PEDO*PENE*PIPI*PITO*
A126: POPO | B126: PXPO | D126: =D125&Tabla.Palabras.Inconvenientes[[#This Row],[Palabra Inconveniente]]&"*" -> BACA*BAKA*BUEI*BUEY*CACA*CACO*CAGA*CAGO*CAKA*CAKO*COGE*COGI*COJA*COJE*COJI*COJO*COLA*CULO*FALO*FETO*GETA*GUEI*GUEY*JETA*JOTO*KACA*KACO*KAGA*KAGO*KAKA*KAKO*KOGE*KOGI*KOJA*KOJE*KOJI*KOJO*KOLA*KULO*LILO*LOCA*LOCO*LOKA*LOKO*MAME*MAMO*MEAR*MEAS*MEON*MIAR*MION*MOCO*MOKO*MULA*MULO*NACA*NACO*PEDA*PEDO*PENE*PIPI*PITO*POPO*
A127: PUTA | B127: PXTA | D127: =D126&Tabla.Palabras.Inconvenientes[[#This Row],[Palabra Inconveniente]]&"*" -> BACA*BAKA*BUEI*BUEY*CACA*CACO*CAGA*CAGO*CAKA*CAKO*COGE*COGI*COJA*COJE*COJI*COJO*COLA*CULO*FALO*FETO*GETA*GUEI*GUEY*JETA*JOTO*KACA*KACO*KAGA*KAGO*KAKA*KAKO*KOGE*KOGI*KOJA*KOJE*KOJI*KOJO*KOLA*KULO*LILO*LOCA*LOCO*LOKA*LOKO*MAME*MAMO*MEAR*MEAS*MEON*MIAR*MION*MOCO*MOKO*MULA*MULO*NACA*NACO*PEDA*PEDO*PENE*PIPI*PITO*POPO*PUTA*
A128: PUTO | B128: PXTO | D128: =D127&Tabla.Palabras.Inconvenientes[[#This Row],[Palabra Inconveniente]]&"*" -> BACA*BAKA*BUEI*BUEY*CACA*CACO*CAGA*CAGO*CAKA*CAKO*COGE*COGI*COJA*COJE*COJI*COJO*COLA*CULO*FALO*FETO*GETA*GUEI*GUEY*JETA*JOTO*KACA*KACO*KAGA*KAGO*KAKA*KAKO*KOGE*KOGI*KOJA*KOJE*KOJI*KOJO*KOLA*KULO*LILO*LOCA*LOCO*LOKA*LOKO*MAME*MAMO*MEAR*MEAS*MEON*MIAR*MION*MOCO*MOKO*MULA*MULO*NACA*NACO*PEDA*PEDO*PENE*PIPI*PITO*POPO*PUTA*PUTO*
A129: QULO | B129: QXLO | D129: =D128&Tabla.Palabras.Inconvenientes[[#This Row],[Palabra Inconveniente]]&"*" -> BACA*BAKA*BUEI*BUEY*CACA*CACO*CAGA*CAGO*CAKA*CAKO*COGE*COGI*COJA*COJE*COJI*COJO*COLA*CULO*FALO*FETO*GETA*GUEI*GUEY*JETA*JOTO*KACA*KACO*KAGA*KAGO*KAKA*KAKO*KOGE*KOGI*KOJA*KOJE*KOJI*KOJO*KOLA*KULO*LILO*LOCA*LOCO*LOKA*LOKO*MAME*MAMO*MEAR*MEAS*MEON*MIAR*MION*MOCO*MOKO*MULA*MULO*NACA*NACO*PEDA*PEDO*PENE*PIPI*PITO*POPO*PUTA*PUTO*QULO*
A130: RATA | B130: RXTA | D130: =D129&Tabla.Palabras.Inconvenientes[[#This Row],[Palabra Inconveniente]]&"*" -> BACA*BAKA*BUEI*BUEY*CACA*CACO*CAGA*CAGO*CAKA*CAKO*COGE*COGI*COJA*COJE*COJI*COJO*COLA*CULO*FALO*FETO*GETA*GUEI*GUEY*JETA*JOTO*KACA*KACO*KAGA*KAGO*KAKA*KAKO*KOGE*KOGI*KOJA*KOJE*KOJI*KOJO*KOLA*KULO*LILO*LOCA*LOCO*LOKA*LOKO*MAME*MAMO*MEAR*MEAS*MEON*MIAR*MION*MOCO*MOKO*MULA*MULO*NACA*NACO*PEDA*PEDO*PENE*PIPI*PITO*POPO*PUTA*PUTO*QULO*RATA*
A131: ROBA | B131: RXBA | D131: =D130&Tabla.Palabras.Inconvenientes[[#This Row],[Palabra Inconveniente]]&"*" -> BACA*BAKA*BUEI*BUEY*CACA*CACO*CAGA*CAGO*CAKA*CAKO*COGE*COGI*COJA*COJE*COJI*COJO*COLA*CULO*FALO*FETO*GETA*GUEI*GUEY*JETA*JOTO*KACA*KACO*KAGA*KAGO*KAKA*KAKO*KOGE*KOGI*KOJA*KOJE*KOJI*KOJO*KOLA*KULO*LILO*LOCA*LOCO*LOKA*LOKO*MAME*MAMO*MEAR*MEAS*MEON*MIAR*MION*MOCO*MOKO*MULA*MULO*NACA*NACO*PEDA*PEDO*PENE*PIPI*PITO*POPO*PUTA*PUTO*QULO*RATA*ROBA*
A132: ROBE | B132: RXBE | D132: =D131&Tabla.Palabras.Inconvenientes[[#This Row],[Palabra Inconveniente]]&"*" -> BACA*BAKA*BUEI*BUEY*CACA*CACO*CAGA*CAGO*CAKA*CAKO*COGE*COGI*COJA*COJE*COJI*COJO*COLA*CULO*FALO*FETO*GETA*GUEI*GUEY*JETA*JOTO*KACA*KACO*KAGA*KAGO*KAKA*KAKO*KOGE*KOGI*KOJA*KOJE*KOJI*KOJO*KOLA*KULO*LILO*LOCA*LOCO*LOKA*LOKO*MAME*MAMO*MEAR*MEAS*MEON*MIAR*MION*MOCO*MOKO*MULA*MULO*NACA*NACO*PEDA*PEDO*PENE*PIPI*PITO*POPO*PUTA*PUTO*QULO*RATA*ROBA*ROBE*
A133: ROBO | B133: RXBO | D133: =D132&Tabla.Palabras.Inconvenientes[[#This Row],[Palabra Inconveniente]]&"*" -> BACA*BAKA*BUEI*BUEY*CACA*CACO*CAGA*CAGO*CAKA*CAKO*COGE*COGI*COJA*COJE*COJI*COJO*COLA*CULO*FALO*FETO*GETA*GUEI*GUEY*JETA*JOTO*KACA*KACO*KAGA*KAGO*KAKA*KAKO*KOGE*KOGI*KOJA*KOJE*KOJI*KOJO*KOLA*KULO*LILO*LOCA*LOCO*LOKA*LOKO*MAME*MAMO*MEAR*MEAS*MEON*MIAR*MION*MOCO*MOKO*MULA*MULO*NACA*NACO*PEDA*PEDO*PENE*PIPI*PITO*POPO*PUTA*PUTO*QULO*RATA*ROBA*ROBE*ROBO*
A134: RUIN | B134: RXIN | D134: =D133&Tabla.Palabras.Inconvenientes[[#This Row],[Palabra Inconveniente]]&"*" -> BACA*BAKA*BUEI*BUEY*CACA*CACO*CAGA*CAGO*CAKA*CAKO*COGE*COGI*COJA*COJE*COJI*COJO*COLA*CULO*FALO*FETO*GETA*GUEI*GUEY*JETA*JOTO*KACA*KACO*KAGA*KAGO*KAKA*KAKO*KOGE*KOGI*KOJA*KOJE*KOJI*KOJO*KOLA*KULO*LILO*LOCA*LOCO*LOKA*LOKO*MAME*MAMO*MEAR*MEAS*MEON*MIAR*MION*MOCO*MOKO*MULA*MULO*NACA*NACO*PEDA*PEDO*PENE*PIPI*PITO*POPO*PUTA*PUTO*QULO*RATA*ROBA*ROBE*ROBO*RUIN*
A135: SENO | B135: SXNO | D135: =D134&Tabla.Palabras.Inconvenientes[[#This Row],[Palabra Inconveniente]]&"*" -> BACA*BAKA*BUEI*BUEY*CACA*CACO*CAGA*CAGO*CAKA*CAKO*COGE*COGI*COJA*COJE*COJI*COJO*COLA*CULO*FALO*FETO*GETA*GUEI*GUEY*JETA*JOTO*KACA*KACO*KAGA*KAGO*KAKA*KAKO*KOGE*KOGI*KOJA*KOJE*KOJI*KOJO*KOLA*KULO*LILO*LOCA*LOCO*LOKA*LOKO*MAME*MAMO*MEAR*MEAS*MEON*MIAR*MION*MOCO*MOKO*MULA*MULO*NACA*NACO*PEDA*PEDO*PENE*PIPI*PITO*POPO*PUTA*PUTO*QULO*RATA*ROBA*ROBE*ROBO*RUIN*SENO*
A136: TETA | B136: TXTA | D136: =D135&Tabla.Palabras.Inconvenientes[[#This Row],[Palabra Inconveniente]]&"*" -> BACA*BAKA*BUEI*BUEY*CACA*CACO*CAGA*CAGO*CAKA*CAKO*COGE*COGI*COJA*COJE*COJI*COJO*COLA*CULO*FALO*FETO*GETA*GUEI*GUEY*JETA*JOTO*KACA*KACO*KAGA*KAGO*KAKA*KAKO*KOGE*KOGI*KOJA*KOJE*KOJI*KOJO*KOLA*KULO*LILO*LOCA*LOCO*LOKA*LOKO*MAME*MAMO*MEAR*MEAS*MEON*MIAR*MION*MOCO*MOKO*MULA*MULO*NACA*NACO*PEDA*PEDO*PENE*PIPI*PITO*POPO*PUTA*PUTO*QULO*RATA*ROBA*ROBE*ROBO*RUIN*SENO*TETA*
A137: VACA | B137: VXCA | D137: =D136&Tabla.Palabras.Inconvenientes[[#This Row],[Palabra Inconveniente]]&"*" -> BACA*BAKA*BUEI*BUEY*CACA*CACO*CAGA*CAGO*CAKA*CAKO*COGE*COGI*COJA*COJE*COJI*COJO*COLA*CULO*FALO*FETO*GETA*GUEI*GUEY*JETA*JOTO*KACA*KACO*KAGA*KAGO*KAKA*KAKO*KOGE*KOGI*KOJA*KOJE*KOJI*KOJO*KOLA*KULO*LILO*LOCA*LOCO*LOKA*LOKO*MAME*MAMO*MEAR*MEAS*MEON*MIAR*MION*MOCO*MOKO*MULA*MULO*NACA*NACO*PEDA*PEDO*PENE*PIPI*PITO*POPO*PUTA*PUTO*QULO*RATA*ROBA*ROBE*ROBO*RUIN*SENO*TETA*VACA*
A138: VAGA | B138: VXGA | D138: =D137&Tabla.Palabras.Inconvenientes[[#This Row],[Palabra Inconveniente]]&"*" -> BACA*BAKA*BUEI*BUEY*CACA*CACO*CAGA*CAGO*CAKA*CAKO*COGE*COGI*COJA*COJE*COJI*COJO*COLA*CULO*FALO*FETO*GETA*GUEI*GUEY*JETA*JOTO*KACA*KACO*KAGA*KAGO*KAKA*KAKO*KOGE*KOGI*KOJA*KOJE*KOJI*KOJO*KOLA*KULO*LILO*LOCA*LOCO*LOKA*LOKO*MAME*MAMO*MEAR*MEAS*MEON*MIAR*MION*MOCO*MOKO*MULA*MULO*NACA*NACO*PEDA*PEDO*PENE*PIPI*PITO*POPO*PUTA*PUTO*QULO*RATA*ROBA*ROBE*ROBO*RUIN*SENO*TETA*VACA*VAGA*
A139: VAGO | B139: VXGO | D139: =D138&Tabla.Palabras.Inconvenientes[[#This Row],[Palabra Inconveniente]]&"*" -> BACA*BAKA*BUEI*BUEY*CACA*CACO*CAGA*CAGO*CAKA*CAKO*COGE*COGI*COJA*COJE*COJI*COJO*COLA*CULO*FALO*FETO*GETA*GUEI*GUEY*JETA*JOTO*KACA*KACO*KAGA*KAGO*KAKA*KAKO*KOGE*KOGI*KOJA*KOJE*KOJI*KOJO*KOLA*KULO*LILO*LOCA*LOCO*LOKA*LOKO*MAME*MAMO*MEAR*MEAS*MEON*MIAR*MION*MOCO*MOKO*MULA*MULO*NACA*NACO*PEDA*PEDO*PENE*PIPI*PITO*POPO*PUTA*PUTO*QULO*RATA*ROBA*ROBE*ROBO*RUIN*SENO*TETA*VACA*VAGA*VAGO*
A140: VAKA | B140: VXKA | D140: =D139&Tabla.Palabras.Inconvenientes[[#This Row],[Palabra Inconveniente]]&"*" -> BACA*BAKA*BUEI*BUEY*CACA*CACO*CAGA*CAGO*CAKA*CAKO*COGE*COGI*COJA*COJE*COJI*COJO*COLA*CULO*FALO*FETO*GETA*GUEI*GUEY*JETA*JOTO*KACA*KACO*KAGA*KAGO*KAKA*KAKO*KOGE*KOGI*KOJA*KOJE*KOJI*KOJO*KOLA*KULO*LILO*LOCA*LOCO*LOKA*LOKO*MAME*MAMO*MEAR*MEAS*MEON*MIAR*MION*MOCO*MOKO*MULA*MULO*NACA*NACO*PEDA*PEDO*PENE*PIPI*PITO*POPO*PUTA*PUTO*QULO*RATA*ROBA*ROBE*ROBO*RUIN*SENO*TETA*VACA*VAGA*VAGO*VAKA*
A141: VUEI | B141: VXEI | D141: =D140&Tabla.Palabras.Inconvenientes[[#This Row],[Palabra Inconveniente]]&"*" -> BACA*BAKA*BUEI*BUEY*CACA*CACO*CAGA*CAGO*CAKA*CAKO*COGE*COGI*COJA*COJE*COJI*COJO*COLA*CULO*FALO*FETO*GETA*GUEI*GUEY*JETA*JOTO*KACA*KACO*KAGA*KAGO*KAKA*KAKO*KOGE*KOGI*KOJA*KOJE*KOJI*KOJO*KOLA*KULO*LILO*LOCA*LOCO*LOKA*LOKO*MAME*MAMO*MEAR*MEAS*MEON*MIAR*MION*MOCO*MOKO*MULA*MULO*NACA*NACO*PEDA*PEDO*PENE*PIPI*PITO*POPO*PUTA*PUTO*QULO*RATA*ROBA*ROBE*ROBO*RUIN*SENO*TETA*VACA*VAGA*VAGO*VAKA*VUEI*
A142: VUEY | B142: VXEY | D142: =D141&Tabla.Palabras.Inconvenientes[[#This Row],[Palabra Inconveniente]]&"*" -> BACA*BAKA*BUEI*BUEY*CACA*CACO*CAGA*CAGO*CAKA*CAKO*COGE*COGI*COJA*COJE*COJI*COJO*COLA*CULO*FALO*FETO*GETA*GUEI*GUEY*JETA*JOTO*KACA*KACO*KAGA*KAGO*KAKA*KAKO*KOGE*KOGI*KOJA*KOJE*KOJI*KOJO*KOLA*KULO*LILO*LOCA*LOCO*LOKA*LOKO*MAME*MAMO*MEAR*MEAS*MEON*MIAR*MION*MOCO*MOKO*MULA*MULO*NACA*NACO*PEDA*PEDO*PENE*PIPI*PITO*POPO*PUTA*PUTO*QULO*RATA*ROBA*ROBE*ROBO*RUIN*SENO*TETA*VACA*VAGA*VAGO*VAKA*VUEI*VUEY*
A143: WUEI | B143: WXEI | D143: =D142&Tabla.Palabras.Inconvenientes[[#This Row],[Palabra Inconveniente]]&"*" -> BACA*BAKA*BUEI*BUEY*CACA*CACO*CAGA*CAGO*CAKA*CAKO*COGE*COGI*COJA*COJE*COJI*COJO*COLA*CULO*FALO*FETO*GETA*GUEI*GUEY*JETA*JOTO*KACA*KACO*KAGA*KAGO*KAKA*KAKO*KOGE*KOGI*KOJA*KOJE*KOJI*KOJO*KOLA*KULO*LILO*LOCA*LOCO*LOKA*LOKO*MAME*MAMO*MEAR*MEAS*MEON*MIAR*MION*MOCO*MOKO*MULA*MULO*NACA*NACO*PEDA*PEDO*PENE*PIPI*PITO*POPO*PUTA*PUTO*QULO*RATA*ROBA*ROBE*ROBO*RUIN*SENO*TETA*VACA*VAGA*VAGO*VAKA*VUEI*VUEY*WUEI*
A144: WUEY | B144: WXEY | D144: =D143&Tabla.Palabras.Inconvenientes[[#This Row],[Palabra Inconveniente]]&"*" -> BACA*BAKA*BUEI*BUEY*CACA*CACO*CAGA*CAGO*CAKA*CAKO*COGE*COGI*COJA*COJE*COJI*COJO*COLA*CULO*FALO*FETO*GETA*GUEI*GUEY*JETA*JOTO*KACA*KACO*KAGA*KAGO*KAKA*KAKO*KOGE*KOGI*KOJA*KOJE*KOJI*KOJO*KOLA*KULO*LILO*LOCA*LOCO*LOKA*LOKO*MAME*MAMO*MEAR*MEAS*MEON*MIAR*MION*MOCO*MOKO*MULA*MULO*NACA*NACO*PEDA*PEDO*PENE*PIPI*PITO*POPO*PUTA*PUTO*QULO*RATA*ROBA*ROBE*ROBO*RUIN*SENO*TETA*VACA*VAGA*VAGO*VAKA*VUEI*VUEY*WUEI*WUEY*
A145: =SUBTOTAL(103,Tabla.Palabras.Inconvenientes[Palabra Inconveniente]) -> 81 | D145: =D144 -> BACA*BAKA*BUEI*BUEY*CACA*CACO*CAGA*CAGO*CAKA*CAKO*COGE*COGI*COJA*COJE*COJI*COJO*COLA*CULO*FALO*FETO*GETA*GUEI*GUEY*JETA*JOTO*KACA*KACO*KAGA*KAGO*KAKA*KAKO*KOGE*KOGI*KOJA*KOJE*KOJI*KOJO*KOLA*KULO*LILO*LOCA*LOCO*LOKA*LOKO*MAME*MAMO*MEAR*MEAS*MEON*MIAR*MION*MOCO*MOKO*MULA*MULO*NACA*NACO*PEDA*PEDO*PENE*PIPI*PITO*POPO*PUTA*PUTO*QULO*RATA*ROBA*ROBE*ROBO*RUIN*SENO*TETA*VACA*VAGA*VAGO*VAKA*VUEI*VUEY*WUEI*WUEY*
A147: Tabla Estados CURP
A148: EDO | B148: Estado | C148: Edo.CURP | D148: Concatenado CURP | E148: Concatenado EDOs
A149: AGS | B149: AGUASCALIENTES | C149: AS | D149: =Tabla.EDO.CURP[[#This Row],[Edo.CURP]]&"*" -> AS* | E149: =Tabla.EDO.CURP[[#This Row],[EDO]]&"*" -> AGS*
A150: BCN | B150: BAJA CALIFORNIA | C150: BC | D150: =D149&Tabla.EDO.CURP[[#This Row],[Edo.CURP]]&"*" -> AS*BC* | E150: =E149&Tabla.EDO.CURP[[#This Row],[EDO]]&"*" -> AGS*BCN*
A151: BCS | B151: BAJA CALIFORNIA SUR | C151: BS | D151: =D150&Tabla.EDO.CURP[[#This Row],[Edo.CURP]]&"*" -> AS*BC*BS* | E151: =E150&Tabla.EDO.CURP[[#This Row],[EDO]]&"*" -> AGS*BCN*BCS*
A152: CAM | B152: CAMPECHE | C152: CC | D152: =D151&Tabla.EDO.CURP[[#This Row],[Edo.CURP]]&"*" -> AS*BC*BS*CC* | E152: =E151&Tabla.EDO.CURP[[#This Row],[EDO]]&"*" -> AGS*BCN*BCS*CAM*
A153: COA | B153: COAHUILA | C153: CL | D153: =D152&Tabla.EDO.CURP[[#This Row],[Edo.CURP]]&"*" -> AS*BC*BS*CC*CL* | E153: =E152&Tabla.EDO.CURP[[#This Row],[EDO]]&"*" -> AGS*BCN*BCS*CAM*COA*
A154: COL | B154: COLIMA | C154: CM | D154: =D153&Tabla.EDO.CURP[[#This Row],[Edo.CURP]]&"*" -> AS*BC*BS*CC*CL*CM* | E154: =E153&Tabla.EDO.CURP[[#This Row],[EDO]]&"*" -> AGS*BCN*BCS*CAM*COA*COL*
A155: CHS | B155: CHIAPAS | C155: CS | D155: =D154&Tabla.EDO.CURP[[#This Row],[Edo.CURP]]&"*" -> AS*BC*BS*CC*CL*CM*CS* | E155: =E154&Tabla.EDO.CURP[[#This Row],[EDO]]&"*" -> AGS*BCN*BCS*CAM*COA*COL*CHS*
A156: CHI | B156: CHIHUAHUA | C156: CH | D156: =D155&Tabla.EDO.CURP[[#This Row],[Edo.CURP]]&"*" -> AS*BC*BS*CC*CL*CM*CS*CH* | E156: =E155&Tabla.EDO.CURP[[#This Row],[EDO]]&"*" -> AGS*BCN*BCS*CAM*COA*COL*CHS*CHI*
A157: DF | B157: DISTRITO FEDERAL | C157: DF | D157: =D156&Tabla.EDO.CURP[[#This Row],[Edo.CURP]]&"*" -> AS*BC*BS*CC*CL*CM*CS*CH*DF* | E157: =E156&Tabla.EDO.CURP[[#This Row],[EDO]]&"*" -> AGS*BCN*BCS*CAM*COA*COL*CHS*CHI*DF*
A158: DGO | B158: DURANGO | C158: DG | D158: =D157&Tabla.EDO.CURP[[#This Row],[Edo.CURP]]&"*" -> AS*BC*BS*CC*CL*CM*CS*CH*DF*DG* | E158: =E157&Tabla.EDO.CURP[[#This Row],[EDO]]&"*" -> AGS*BCN*BCS*CAM*COA*COL*CHS*CHI*DF*DGO*
A159: GTO | B159: GUANAJUATO | C159: GT | D159: =D158&Tabla.EDO.CURP[[#This Row],[Edo.CURP]]&"*" -> AS*BC*BS*CC*CL*CM*CS*CH*DF*DG*GT* | E159: =E158&Tabla.EDO.CURP[[#This Row],[EDO]]&"*" -> AGS*BCN*BCS*CAM*COA*COL*CHS*CHI*DF*DGO*GTO*
A160: GRO | B160: GUERRERO | C160: GR | D160: =D159&Tabla.EDO.CURP[[#This Row],[Edo.CURP]]&"*" -> AS*BC*BS*CC*CL*CM*CS*CH*DF*DG*GT*GR* | E160: =E159&Tabla.EDO.CURP[[#This Row],[EDO]]&"*" -> AGS*BCN*BCS*CAM*COA*COL*CHS*CHI*DF*DGO*GTO*GRO*
A161: HGO | B161: HIDALGO | C161: HG | D161: =D160&Tabla.EDO.CURP[[#This Row],[Edo.CURP]]&"*" -> AS*BC*BS*CC*CL*CM*CS*CH*DF*DG*GT*GR*HG* | E161: =E160&Tabla.EDO.CURP[[#This Row],[EDO]]&"*" -> AGS*BCN*BCS*CAM*COA*COL*CHS*CHI*DF*DGO*GTO*GRO*HGO*
A162: JAL | B162: JALISCO | C162: JC | D162: =D161&Tabla.EDO.CURP[[#This Row],[Edo.CURP]]&"*" -> AS*BC*BS*CC*CL*CM*CS*CH*DF*DG*GT*GR*HG*JC* | E162: =E161&Tabla.EDO.CURP[[#This Row],[EDO]]&"*" -> AGS*BCN*BCS*CAM*COA*COL*CHS*CHI*DF*DGO*GTO*GRO*HGO*JAL*
A163: MX | B163: MÉXICO | C163: MC | D163: =D162&Tabla.EDO.CURP[[#This Row],[Edo.CURP]]&"*" -> AS*BC*BS*CC*CL*CM*CS*CH*DF*DG*GT*GR*HG*JC*MC* | E163: =E162&Tabla.EDO.CURP[[#This Row],[EDO]]&"*" -> AGS*BCN*BCS*CAM*COA*COL*CHS*CHI*DF*DGO*GTO*GRO*HGO*JAL*MX*
A164: MIC | B164: MICHOACÁN | C164: MN | D164: =D163&Tabla.EDO.CURP[[#This Row],[Edo.CURP]]&"*" -> AS*BC*BS*CC*CL*CM*CS*CH*DF*DG*GT*GR*HG*JC*MC*MN* | E164: =E163&Tabla.EDO.CURP[[#This Row],[EDO]]&"*" -> AGS*BCN*BCS*CAM*COA*COL*CHS*CHI*DF*DGO*GTO*GRO*HGO*JAL*MX*MIC*
A165: MOR | B165: MORELOS | C165: MS | D165: =D164&Tabla.EDO.CURP[[#This Row],[Edo.CURP]]&"*" -> AS*BC*BS*CC*CL*CM*CS*CH*DF*DG*GT*GR*HG*JC*MC*MN*MS* | E165: =E164&Tabla.EDO.CURP[[#This Row],[EDO]]&"*" -> AGS*BCN*BCS*CAM*COA*COL*CHS*CHI*DF*DGO*GTO*GRO*HGO*JAL*MX*MIC*MOR*
A166: NAY | B166: NAYARIT | C166: NT | D166: =D165&Tabla.EDO.CURP[[#This Row],[Edo.CURP]]&"*" -> AS*BC*BS*CC*CL*CM*CS*CH*DF*DG*GT*GR*HG*JC*MC*MN*MS*NT* | E166: =E165&Tabla.EDO.CURP[[#This Row],[EDO]]&"*" -> AGS*BCN*BCS*CAM*COA*COL*CHS*CHI*DF*DGO*GTO*GRO*HGO*JAL*MX*MIC*MOR*NAY*
A167: NL | B167: NUEVO LEÓN | C167: NL | D167: =D166&Tabla.EDO.CURP[[#This Row],[Edo.CURP]]&"*" -> AS*BC*BS*CC*CL*CM*CS*CH*DF*DG*GT*GR*HG*JC*MC*MN*MS*NT*NL* | E167: =E166&Tabla.EDO.CURP[[#This Row],[EDO]]&"*" -> AGS*BCN*BCS*CAM*COA*COL*CHS*CHI*DF*DGO*GTO*GRO*HGO*JAL*MX*MIC*MOR*NAY*NL*
A168: OAX | B168: OAXACA | C168: OC | D168: =D167&Tabla.EDO.CURP[[#This Row],[Edo.CURP]]&"*" -> AS*BC*BS*CC*CL*CM*CS*CH*DF*DG*GT*GR*HG*JC*MC*MN*MS*NT*NL*OC* | E168: =E167&Tabla.EDO.CURP[[#This Row],[EDO]]&"*" -> AGS*BCN*BCS*CAM*COA*COL*CHS*CHI*DF*DGO*GTO*GRO*HGO*JAL*MX*MIC*MOR*NAY*NL*OAX*
A169: PUE | B169: PUEBLA | C169: PL | D169: =D168&Tabla.EDO.CURP[[#This Row],[Edo.CURP]]&"*" -> AS*BC*BS*CC*CL*CM*CS*CH*DF*DG*GT*GR*HG*JC*MC*MN*MS*NT*NL*OC*PL* | E169: =E168&Tabla.EDO.CURP[[#This Row],[EDO]]&"*" -> AGS*BCN*BCS*CAM*COA*COL*CHS*CHI*DF*DGO*GTO*GRO*HGO*JAL*MX*MIC*MOR*NAY*NL*OAX*PUE*
A170: QR | B170: QUERÉTARO | C170: QT | D170: =D169&Tabla.EDO.CURP[[#This Row],[Edo.CURP]]&"*" -> AS*BC*BS*CC*CL*CM*CS*CH*DF*DG*GT*GR*HG*JC*MC*MN*MS*NT*NL*OC*PL*QT* | E170: =E169&Tabla.EDO.CURP[[#This Row],[EDO]]&"*" -> AGS*BCN*BCS*CAM*COA*COL*CHS*CHI*DF*DGO*GTO*GRO*HGO*JAL*MX*MIC*MOR*NAY*NL*OAX*PUE*QR*
A171: QRO | B171: QUINTANA ROO | C171: QR | D171: =D170&Tabla.EDO.CURP[[#This Row],[Edo.CURP]]&"*" -> AS*BC*BS*CC*CL*CM*CS*CH*DF*DG*GT*GR*HG*JC*MC*MN*MS*NT*NL*OC*PL*QT*QR* | E171: =E170&Tabla.EDO.CURP[[#This Row],[EDO]]&"*" -> AGS*BCN*BCS*CAM*COA*COL*CHS*CHI*DF*DGO*GTO*GRO*HGO*JAL*MX*MIC*MOR*NAY*NL*OAX*PUE*QR*QRO*
A172: SLP | B172: SAN LUIS POTOSÍ | C172: SP | D172: =D171&Tabla.EDO.CURP[[#This Row],[Edo.CURP]]&"*" -> AS*BC*BS*CC*CL*CM*CS*CH*DF*DG*GT*GR*HG*JC*MC*MN*MS*NT*NL*OC*PL*QT*QR*SP* | E172: =E171&Tabla.EDO.CURP[[#This Row],[EDO]]&"*" -> AGS*BCN*BCS*CAM*COA*COL*CHS*CHI*DF*DGO*GTO*GRO*HGO*JAL*MX*MIC*MOR*NAY*NL*OAX*PUE*QR*QRO*SLP*
A173: SIN | B173: SINALOA | C173: SL | D173: =D172&Tabla.EDO.CURP[[#This Row],[Edo.CURP]]&"*" -> AS*BC*BS*CC*CL*CM*CS*CH*DF*DG*GT*GR*HG*JC*MC*MN*MS*NT*NL*OC*PL*QT*QR*SP*SL* | E173: =E172&Tabla.EDO.CURP[[#This Row],[EDO]]&"*" -> AGS*BCN*BCS*CAM*COA*COL*CHS*CHI*DF*DGO*GTO*GRO*HGO*JAL*MX*MIC*MOR*NAY*NL*OAX*PUE*QR*QRO*SLP*SIN*
A174: SON | B174: SONORA | C174: SR | D174: =D173&Tabla.EDO.CURP[[#This Row],[Edo.CURP]]&"*" -> AS*BC*BS*CC*CL*CM*CS*CH*DF*DG*GT*GR*HG*JC*MC*MN*MS*NT*NL*OC*PL*QT*QR*SP*SL*SR* | E174: =E173&Tabla.EDO.CURP[[#This Row],[EDO]]&"*" -> AGS*BCN*BCS*CAM*COA*COL*CHS*CHI*DF*DGO*GTO*GRO*HGO*JAL*MX*MIC*MOR*NAY*NL*OAX*PUE*QR*QRO*SLP*SIN*SON*
A175: TAB | B175: TABASCO | C175: TC | D175: =D174&Tabla.EDO.CURP[[#This Row],[Edo.CURP]]&"*" -> AS*BC*BS*CC*CL*CM*CS*CH*DF*DG*GT*GR*HG*JC*MC*MN*MS*NT*NL*OC*PL*QT*QR*SP*SL*SR*TC* | E175: =E174&Tabla.EDO.CURP[[#This Row],[EDO]]&"*" -> AGS*BCN*BCS*CAM*COA*COL*CHS*CHI*DF*DGO*GTO*GRO*HGO*JAL*MX*MIC*MOR*NAY*NL*OAX*PUE*QR*QRO*SLP*SIN*SON*TAB*
A176: TAM | B176: TAMAULIPAS | C176: TS | D176: =D175&Tabla.EDO.CURP[[#This Row],[Edo.CURP]]&"*" -> AS*BC*BS*CC*CL*CM*CS*CH*DF*DG*GT*GR*HG*JC*MC*MN*MS*NT*NL*OC*PL*QT*QR*SP*SL*SR*TC*TS* | E176: =E175&Tabla.EDO.CURP[[#This Row],[EDO]]&"*" -> AGS*BCN*BCS*CAM*COA*COL*CHS*CHI*DF*DGO*GTO*GRO*HGO*JAL*MX*MIC*MOR*NAY*NL*OAX*PUE*QR*QRO*SLP*SIN*SON*TAB*TAM*
A177: TLA | B177: TLAXCALA | C177: TL | D177: =D176&Tabla.EDO.CURP[[#This Row],[Edo.CURP]]&"*" -> AS*BC*BS*CC*CL*CM*CS*CH*DF*DG*GT*GR*HG*JC*MC*MN*MS*NT*NL*OC*PL*QT*QR*SP*SL*SR*TC*TS*TL* | E177: =E176&Tabla.EDO.CURP[[#This Row],[EDO]]&"*" -> AGS*BCN*BCS*CAM*COA*COL*CHS*CHI*DF*DGO*GTO*GRO*HGO*JAL*MX*MIC*MOR*NAY*NL*OAX*PUE*QR*QRO*SLP*SIN*SON*TAB*TAM*TLA*
A178: VER | B178: VERACRUZ | C178: VZ | D178: =D177&Tabla.EDO.CURP[[#This Row],[Edo.CURP]]&"*" -> AS*BC*BS*CC*CL*CM*CS*CH*DF*DG*GT*GR*HG*JC*MC*MN*MS*NT*NL*OC*PL*QT*QR*SP*SL*SR*TC*TS*TL*VZ* | E178: =E177&Tabla.EDO.CURP[[#This Row],[EDO]]&"*" -> AGS*BCN*BCS*CAM*COA*COL*CHS*CHI*DF*DGO*GTO*GRO*HGO*JAL*MX*MIC*MOR*NAY*NL*OAX*PUE*QR*QRO*SLP*SIN*SON*TAB*TAM*TLA*VER*
A179: YUC | B179: YUCATÁN | C179: YN | D179: =D178&Tabla.EDO.CURP[[#This Row],[Edo.CURP]]&"*" -> AS*BC*BS*CC*CL*CM*CS*CH*DF*DG*GT*GR*HG*JC*MC*MN*MS*NT*NL*OC*PL*QT*QR*SP*SL*SR*TC*TS*TL*VZ*YN* | E179: =E178&Tabla.EDO.CURP[[#This Row],[EDO]]&"*" -> AGS*BCN*BCS*CAM*COA*COL*CHS*CHI*DF*DGO*GTO*GRO*HGO*JAL*MX*MIC*MOR*NAY*NL*OAX*PUE*QR*QRO*SLP*SIN*SON*TAB*TAM*TLA*VER*YUC*
A180: ZAC | B180: ZACATECAS | C180: ZS | D180: =D179&Tabla.EDO.CURP[[#This Row],[Edo.CURP]]&"*" -> AS*BC*BS*CC*CL*CM*CS*CH*DF*DG*GT*GR*HG*JC*MC*MN*MS*NT*NL*OC*PL*QT*QR*SP*SL*SR*TC*TS*TL*VZ*YN*ZS* | E180: =E179&Tabla.EDO.CURP[[#This Row],[EDO]]&"*" -> AGS*BCN*BCS*CAM*COA*COL*CHS*CHI*DF*DGO*GTO*GRO*HGO*JAL*MX*MIC*MOR*NAY*NL*OAX*PUE*QR*QRO*SLP*SIN*SON*TAB*TAM*TLA*VER*YUC*ZAC*
A181: EXT | B181: NACIDO EN EL EXTRANJERO | C181: NE | D181: =D180&Tabla.EDO.CURP[[#This Row],[Edo.CURP]]&"*" -> AS*BC*BS*CC*CL*CM*CS*CH*DF*DG*GT*GR*HG*JC*MC*MN*MS*NT*NL*OC*PL*QT*QR*SP*SL*SR*TC*TS*TL*VZ*YN*ZS*NE* | E181: =E180&Tabla.EDO.CURP[[#This Row],[EDO]]&"*" -> AGS*BCN*BCS*CAM*COA*COL*CHS*CHI*DF*DGO*GTO*GRO*HGO*JAL*MX*MIC*MOR*NAY*NL*OAX*PUE*QR*QRO*SLP*SIN*SON*TAB*TAM*TLA*VER*YUC*ZAC*EXT*
A182: =SUBTOTAL(103,Tabla.EDO.CURP[EDO]) -> 33 | D182: =D181 -> AS*BC*BS*CC*CL*CM*CS*CH*DF*DG*GT*GR*HG*JC*MC*MN*MS*NT*NL*OC*PL*QT*QR*SP*SL*SR*TC*TS*TL*VZ*YN*ZS*NE* | E182: =E181 -> AGS*BCN*BCS*CAM*COA*COL*CHS*CHI*DF*DGO*GTO*GRO*HGO*JAL*MX*MIC*MOR*NAY*NL*OAX*PUE*QR*QRO*SLP*SIN*SON*TAB*TAM*TLA*VER*YUC*ZAC*EXT*
